Workbook

Sheet miRNA_isomir_counttable
A1: joined name | B1: f000_S03_E01 | C1: f000_S09_E02 | D1: f000_S11_E03 | E1: f000_S11_E01 | F1: f000_S12_E02 | G1: f000_S12_E01 | H1: f010_S02_E01 | I1: f010_S04_E03 | J1: f010_S04_E01 | K1: f010_S07_E01 | L1: f010_S08_E01 | M1: f010_S08_E02 | N1: f1000_S01_E01 | O1: f1000_S01_E02 | P1: f1000_S05_E01 | Q1: f1000_S05_E02 | R1: f1000_S06_E02 | S1: f1000_S10_E02 | T1: m000_S03_E02 | U1: m000_S09_E01 | V1: m000_S11_E02 | W1: m000_S12_E03 | X1: m000_S12_E04 | Y1: m000_S12_E05 | Z1: m010_S02_E03 | AA1: m010_S02_E02 | AB1: m010_S04_E02 | AC1: m010_S04_E04 | AD1: m010_S07_E02 | AE1: m010_S07_E03 | AF1: m1000_S01_E03 | AG1: m1000_S05_E03 | AH1: m1000_S06_E01 | AI1: m1000_S06_E03 | AJ1: m1000_S10_E01 | AK1: m1000_S10_E03 | AL1: countsum | AM1: avg_count | AN1: high expressed
A2: AAAACGTGAGGCGCTGCTAT_ssc-miR-424-3p | B2: 20 | C2: 12 | D2: 22 | E2: 52 | F2: 51 | G2: 66 | H2: 41 | I2: 53 | J2: 34 | K2: 33 | L2: 57 | M2: 46 | N2: 23 | O2: 32 | P2: 51 | Q2: 20 | R2: 22 | S2: 37 | T2: 32 | U2: 35 | V2: 37 | W2: 34 | X2: 30 | Y2: 41 | Z2: 60 | AA2: 38 | AB2: 17 | AC2: 66 | AD2: 31 | AE2: 55 | AF2: 24 | AG2: 68 | AH2: 69 | AI2: 35 | AJ2: 33 | AK2: 26 | AL2: =SUM(B2:AK2) -> 1403 | AM2: =AVERAGE(B2:AK2) -> 38.97222222 | AN2: =IF(AM2>=20,TRUE()) -> 1
A3: AAAACGTGAGGCGCTGCTATA_ssc-miR-424-3p | B3: 36 | C3: 18 | D3: 35 | E3: 36 | F3: 44 | G3: 27 | H3: 33 | I3: 43 | J3: 30 | K3: 33 | L3: 61 | M3: 109 | N3: 13 | O3: 23 | P3: 62 | Q3: 22 | R3: 13 | S3: 26 | T3: 37 | U3: 44 | V3: 17 | W3: 38 | X3: 11 | Y3: 28 | Z3: 41 | AA3: 21 | AB3: 19 | AC3: 50 | AD3: 23 | AE3: 36 | AF3: 13 | AG3: 62 | AH3: 82 | AI3: 13 | AJ3: 27 | AK3: 23 | AL3: =SUM(B3:AK3) -> 1249 | AM3: =AVERAGE(B3:AK3) -> 34.69444444 | AN3: =IF(AM3>=20,TRUE()) -> 1
A4: AAAAGCTGGGTTGAGAGGGC_ssc-miR-320 | B4: 73 | C4: 86 | D4: 99 | E4: 90 | F4: 100 | G4: 59 | H4: 113 | I4: 83 | J4: 54 | K4: 95 | L4: 121 | M4: 79 | N4: 21 | O4: 94 | P4: 109 | Q4: 45 | R4: 66 | S4: 89 | T4: 105 | U4: 71 | V4: 130 | W4: 73 | X4: 48 | Y4: 51 | Z4: 97 | AA4: 107 | AB4: 43 | AC4: 82 | AD4: 71 | AE4: 121 | AF4: 63 | AG4: 68 | AH4: 79 | AI4: 38 | AJ4: 119 | AK4: 47 | AL4: =SUM(B4:AK4) -> 2889 | AM4: =AVERAGE(B4:AK4) -> 80.25 | AN4: =IF(AM4>=20,TRUE()) -> 1
A5: AAAAGCTGGGTTGAGAGGGCA_ssc-miR-320 | B5: 19 | C5: 16 | D5: 9 | E5: 16 | F5: 14 | G5: 14 | H5: 21 | I5: 24 | J5: 15 | K5: 7 | L5: 8 | M5: 36 | N5: 3 | O5: 16 | P5: 12 | Q5: 0 | R5: 16 | S5: 7 | T5: 8 | U5: 8 | V5: 17 | W5: 10 | X5: 7 | Y5: 7 | Z5: 18 | AA5: 4 | AB5: 4 | AC5: 13 | AD5: 13 | AE5: 20 | AF5: 13 | AG5: 13 | AH5: 50 | AI5: 10 | AJ5: 8 | AK5: 12 | AL5: =SUM(B5:AK5) -> 488 | AM5: =AVERAGE(B5:AK5) -> 13.55555556 | AN5: =IF(AM5>=20,TRUE()) -> 0
A6: AAAAGCTGGGTTGAGAGGGCG_ssc-miR-320 | B6: 145 | C6: 247 | D6: 229 | E6: 113 | F6: 151 | G6: 146 | H6: 154 | I6: 118 | J6: 130 | K6: 174 | L6: 182 | M6: 241 | N6: 45 | O6: 164 | P6: 146 | Q6: 54 | R6: 117 | S6: 136 | T6: 102 | U6: 208 | V6: 195 | W6: 121 | X6: 46 | Y6: 96 | Z6: 154 | AA6: 136 | AB6: 55 | AC6: 103 | AD6: 124 | AE6: 209 | AF6: 77 | AG6: 108 | AH6: 229 | AI6: 53 | AJ6: 158 | AK6: 74 | AL6: =SUM(B6:AK6) -> 4940 | AM6: =AVERAGE(B6:AK6) -> 137.2222222 | AN6: =IF(AM6>=20,TRUE()) -> 1
A7: AAAAGCTGGGTTGAGAGGGCGA_ssc-miR-320 | B7: 414 | C7: 791 | D7: 589 | E7: 210 | F7: 546 | G7: 606 | H7: 363 | I7: 613 | J7: 360 | K7: 334 | L7: 758 | M7: 1474 | N7: 123 | O7: 413 | P7: 505 | Q7: 219 | R7: 247 | S7: 403 | T7: 222 | U7: 509 | V7: 254 | W7: 526 | X7: 174 | Y7: 480 | Z7: 341 | AA7: 237 | AB7: 146 | AC7: 226 | AD7: 238 | AE7: 480 | AF7: 221 | AG7: 302 | AH7: 856 | AI7: 223 | AJ7: 369 | AK7: 217 | AL7: =SUM(B7:AK7) -> 14989 | AM7: =AVERAGE(B7:AK7) -> 416.3611111 | AN7: =IF(AM7>=20,TRUE()) -> 1
A8: AAAAGCTGGGTTGAGAGGGCGAA_ssc-miR-320 | B8: 543 | C8: 755 | D8: 498 | E8: 234 | F8: 495 | G8: 546 | H8: 255 | I8: 594 | J8: 428 | K8: 271 | L8: 700 | M8: 1356 | N8: 108 | O8: 359 | P8: 416 | Q8: 239 | R8: 187 | S8: 390 | T8: 316 | U8: 472 | V8: 234 | W8: 455 | X8: 154 | Y8: 398 | Z8: 319 | AA8: 201 | AB8: 181 | AC8: 246 | AD8: 250 | AE8: 430 | AF8: 179 | AG8: 305 | AH8: 740 | AI8: 218 | AJ8: 373 | AK8: 212 | AL8: =SUM(B8:AK8) -> 14057 | AM8: =AVERAGE(B8:AK8) -> 390.4722222 | AN8: =IF(AM8>=20,TRUE()) -> 1
A9: AAAAGCTGGGTTGAGAGGGCGAAA_ssc-miR-320 | B9: 256 | C9: 293 | D9: 226 | E9: 100 | F9: 209 | G9: 185 | H9: 114 | I9: 266 | J9: 168 | K9: 132 | L9: 276 | M9: 559 | N9: 45 | O9: 151 | P9: 206 | Q9: 86 | R9: 76 | S9: 167 | T9: 172 | U9: 221 | V9: 106 | W9: 171 | X9: 82 | Y9: 154 | Z9: 159 | AA9: 122 | AB9: 104 | AC9: 141 | AD9: 137 | AE9: 167 | AF9: 86 | AG9: 127 | AH9: 300 | AI9: 68 | AJ9: 144 | AK9: 77 | AL9: =SUM(B9:AK9) -> 6053 | AM9: =AVERAGE(B9:AK9) -> 168.1388889 | AN9: =IF(AM9>=20,TRUE()) -> 1
A10: AAAAGCTGGGTTGAGAGGGCGAAAA_ssc-miR-320 | B10: 43 | C10: 34 | D10: 17 | E10: 16 | F10: 14 | G10: 23 | H10: 19 | I10: 29 | J10: 21 | K10: 23 | L10: 28 | M10: 57 | N10: 1 | O10: 9 | P10: 23 | Q10: 14 | R10: 9 | S10: 21 | T10: 25 | U10: 24 | V10: 10 | W10: 17 | X10: 6 | Y10: 18 | Z10: 16 | AA10: 15 | AB10: 9 | AC10: 13 | AD10: 13 | AE10: 22 | AF10: 9 | AG10: 15 | AH10: 26 | AI10: 10 | AJ10: 16 | AK10: 8 | AL10: =SUM(B10:AK10) -> 673 | AM10: =AVERAGE(B10:AK10) -> 18.69444444 | AN10: =IF(AM10>=20,TRUE()) -> 0
A11: AAAAGCTGGGTTGAGAGGGCGAAAT_ssc-miR-320 | B11: 15 | C11: 12 | D11: 10 | E11: 14 | F11: 22 | G11: 31 | H11: 14 | I11: 20 | J11: 9 | K11: 4 | L11: 13 | M11: 10 | N11: 5 | O11: 11 | P11: 17 | Q11: 8 | R11: 10 | S11: 16 | T11: 8 | U11: 17 | V11: 10 | W11: 16 | X11: 8 | Y11: 14 | Z11: 6 | AA11: 8 | AB11: 3 | AC11: 10 | AD11: 12 | AE11: 21 | AF11: 8 | AG11: 10 | AH11: 27 | AI11: 6 | AJ11: 15 | AK11: 10 | AL11: =SUM(B11:AK11) -> 450 | AM11: =AVERAGE(B11:AK11) -> 12.5 | AN11: =IF(AM11>=20,TRUE()) -> 0
A12: AAAAGCTGGGTTGAGAGGGCGAAC_ssc-miR-320 | B12: 17 | C12: 17 | D12: 10 | E12: 17 | F12: 20 | G12: 43 | H12: 36 | I12: 42 | J12: 32 | K12: 25 | L12: 32 | M12: 25 | N12: 18 | O12: 37 | P12: 17 | Q12: 14 | R12: 27 | S12: 24 | T12: 19 | U12: 13 | V12: 22 | W12: 14 | X12: 21 | Y12: 30 | Z12: 16 | AA12: 7 | AB12: 10 | AC12: 22 | AD12: 25 | AE12: 39 | AF12: 21 | AG12: 20 | AH12: 52 | AI12: 18 | AJ12: 29 | AK12: 24 | AL12: =SUM(B12:AK12) -> 855 | AM12: =AVERAGE(B12:AK12) -> 23.75 | AN12: =IF(AM12>=20,TRUE()) -> 1
A13: AAAAGCTGGGTTGAGAGGGCGAAG_ssc-miR-320 | B13: 47 | C13: 40 | D13: 37 | E13: 34 | F13: 56 | G13: 49 | H13: 30 | I13: 50 | J13: 55 | K13: 48 | L13: 66 | M13: 49 | N13: 18 | O13: 85 | P13: 43 | Q13: 19 | R13: 29 | S13: 61 | T13: 50 | U13: 40 | V13: 43 | W13: 48 | X13: 19 | Y13: 48 | Z13: 34 | AA13: 27 | AB13: 17 | AC13: 28 | AD13: 25 | AE13: 33 | AF13: 20 | AG13: 31 | AH13: 45 | AI13: 11 | AJ13: 61 | AK13: 21 | AL13: =SUM(B13:AK13) -> 1417 | AM13: =AVERAGE(B13:AK13) -> 39.36111111 | AN13: =IF(AM13>=20,TRUE()) -> 1
A14: AAAAGCTGGGTTGAGAGGGCGAAT_ssc-miR-320 | B14: 66 | C14: 104 | D14: 74 | E14: 81 | F14: 102 | G14: 115 | H14: 97 | I14: 130 | J14: 87 | K14: 52 | L14: 117 | M14: 128 | N14: 45 | O14: 91 | P14: 74 | Q14: 55 | R14: 63 | S14: 47 | T14: 48 | U14: 86 | V14: 60 | W14: 90 | X14: 78 | Y14: 110 | Z14: 85 | AA14: 44 | AB14: 28 | AC14: 70 | AD14: 85 | AE14: 94 | AF14: 95 | AG14: 63 | AH14: 174 | AI14: 47 | AJ14: 74 | AK14: 82 | AL14: =SUM(B14:AK14) -> 2941 | AM14: =AVERAGE(B14:AK14) -> 81.69444444 | AN14: =IF(AM14>=20,TRUE()) -> 1
A15: AAAAGCTGGGTTGAGAGGGCGAC_ssc-miR-320 | B15: 5 | C15: 14 | D15: 11 | E15: 16 | F15: 13 | G15: 28 | H15: 23 | I15: 23 | J15: 23 | K15: 10 | L15: 16 | M15: 10 | N15: 14 | O15: 21 | P15: 9 | Q15: 6 | R15: 14 | S15: 8 | T15: 9 | U15: 5 | V15: 8 | W15: 10 | X15: 11 | Y15: 17 | Z15: 14 | AA15: 8 | AB15: 4 | AC15: 5 | AD15: 9 | AE15: 18 | AF15: 18 | AG15: 13 | AH15: 40 | AI15: 4 | AJ15: 18 | AK15: 13 | AL15: =SUM(B15:AK15) -> 488 | AM15: =AVERAGE(B15:AK15) -> 13.55555556 | AN15: =IF(AM15>=20,TRUE()) -> 0
A16: AAAAGCTGGGTTGAGAGGGCGAG_ssc-miR-320 | B16: 17 | C16: 33 | D16: 20 | E16: 15 | F16: 26 | G16: 29 | H16: 11 | I16: 27 | J16: 54 | K16: 20 | L16: 24 | M16: 43 | N16: 11 | O16: 73 | P16: 32 | Q16: 5 | R16: 35 | S16: 20 | T16: 39 | U16: 15 | V16: 41 | W16: 23 | X16: 11 | Y16: 13 | Z16: 18 | AA16: 13 | AB16: 7 | AC16: 8 | AD16: 5 | AE16: 28 | AF16: 19 | AG16: 18 | AH16: 30 | AI16: 16 | AJ16: 20 | AK16: 12 | AL16: =SUM(B16:AK16) -> 831 | AM16: =AVERAGE(B16:AK16) -> 23.08333333 | AN16: =IF(AM16>=20,TRUE()) -> 1
A17: AAAAGCTGGGTTGAGAGGGCGAT_ssc-miR-320 | B17: 25 | C17: 62 | D17: 48 | E17: 38 | F17: 78 | G17: 129 | H17: 79 | I17: 74 | J17: 47 | K17: 23 | L17: 77 | M17: 81 | N17: 29 | O17: 75 | P17: 51 | Q17: 28 | R17: 37 | S17: 52 | T17: 29 | U17: 44 | V17: 24 | W17: 68 | X17: 50 | Y17: 75 | Z17: 52 | AA17: 25 | AB17: 17 | AC17: 29 | AD17: 59 | AE17: 64 | AF17: 63 | AG17: 49 | AH17: 128 | AI17: 32 | AJ17: 39 | AK17: 68 | AL17: =SUM(B17:AK17) -> 1948 | AM17: =AVERAGE(B17:AK17) -> 54.11111111 | AN17: =IF(AM17>=20,TRUE()) -> 1
A18: AAAAGCTGGGTTGAGAGGGCGATT_ssc-miR-320 | B18: 12 | C18: 44 | D18: 3 | E18: 16 | F18: 9 | G18: 9 | H18: 32 | I18: 12 | J18: 10 | K18: 5 | L18: 27 | M18: 17 | N18: 15 | O18: 13 | P18: 11 | Q18: 0 | R18: 17 | S18: 4 | T18: 6 | U18: 7 | V18: 4 | W18: 7 | X18: 8 | Y18: 10 | Z18: 24 | AA18: 8 | AB18: 4 | AC18: 2 | AD18: 9 | AE18: 13 | AF18: 23 | AG18: 9 | AH18: 27 | AI18: 7 | AJ18: 13 | AK18: 14 | AL18: =SUM(B18:AK18) -> 451 | AM18: =AVERAGE(B18:AK18) -> 12.52777778 | AN18: =IF(AM18>=20,TRUE()) -> 0
A19: AAAAGCTGGGTTGAGAGGGCGC_ssc-miR-320 | B19: 25 | C19: 27 | D19: 18 | E19: 18 | F19: 18 | G19: 10 | H19: 29 | I19: 35 | J19: 18 | K19: 13 | L19: 29 | M19: 32 | N19: 5 | O19: 12 | P19: 16 | Q19: 7 | R19: 16 | S19: 21 | T19: 27 | U19: 23 | V19: 23 | W19: 12 | X19: 15 | Y19: 19 | Z19: 24 | AA19: 11 | AB19: 9 | AC19: 21 | AD19: 14 | AE19: 16 | AF19: 16 | AG19: 17 | AH19: 49 | AI19: 15 | AJ19: 25 | AK19: 18 | AL19: =SUM(B19:AK19) -> 703 | AM19: =AVERAGE(B19:AK19) -> 19.52777778 | AN19: =IF(AM19>=20,TRUE()) -> 0
A20: AAAAGCTGGGTTGAGAGGGCGG_ssc-miR-320 | B20: 5 | C20: 12 | D20: 13 | E20: 8 | F20: 9 | G20: 11 | H20: 7 | I20: 18 | J20: 44 | K20: 3 | L20: 8 | M20: 17 | N20: 0 | O20: 42 | P20: 7 | Q20: 0 | R20: 30 | S20: 8 | T20: 3 | U20: 8 | V20: 21 | W20: 4 | X20: 9 | Y20: 6 | Z20: 10 | AA20: 2 | AB20: 0 | AC20: 4 | AD20: 1 | AE20: 10 | AF20: 5 | AG20: 5 | AH20: 14 | AI20: 4 | AJ20: 9 | AK20: 8 | AL20: =SUM(B20:AK20) -> 365 | AM20: =AVERAGE(B20:AK20) -> 10.13888889 | AN20: =IF(AM20>=20,TRUE()) -> 0
A21: AAAAGCTGGGTTGAGAGGGCGT_ssc-miR-320 | B21: 40 | C21: 53 | D21: 35 | E21: 63 | F21: 40 | G21: 77 | H21: 82 | I21: 70 | J21: 66 | K21: 36 | L21: 76 | M21: 60 | N21: 37 | O21: 74 | P21: 58 | Q21: 27 | R21: 44 | S21: 33 | T21: 68 | U21: 38 | V21: 33 | W21: 46 | X21: 38 | Y21: 59 | Z21: 57 | AA21: 39 | AB21: 20 | AC21: 32 | AD21: 48 | AE21: 55 | AF21: 61 | AG21: 38 | AH21: 130 | AI21: 43 | AJ21: 62 | AK21: 47 | AL21: =SUM(B21:AK21) -> 1885 | AM21: =AVERAGE(B21:AK21) -> 52.36111111 | AN21: =IF(AM21>=20,TRUE()) -> 1
A22: AAAAGCTGGGTTGAGAGGGT_ssc-miR-320 | B22: 7 | C22: 26 | D22: 9 | E22: 34 | F22: 6 | G22: 20 | H22: 57 | I22: 29 | J22: 26 | K22: 9 | L22: 18 | M22: 10 | N22: 13 | O22: 28 | P22: 12 | Q22: 2 | R22: 25 | S22: 11 | T22: 13 | U22: 9 | V22: 36 | W22: 5 | X22: 24 | Y22: 17 | Z22: 17 | AA22: 6 | AB22: 6 | AC22: 39 | AD22: 29 | AE22: 38 | AF22: 32 | AG22: 20 | AH22: 29 | AI22: 12 | AJ22: 11 | AK22: 10 | AL22: =SUM(B22:AK22) -> 695 | AM22: =AVERAGE(B22:AK22) -> 19.30555556 | AN22: =IF(AM22>=20,TRUE()) -> 0
A23: AAAAGTGCTTACAGTGCAGGTAG_ssc-miR-106a | B23: 83 | C23: 224 | D23: 155 | E23: 42 | F23: 180 | G23: 231 | H23: 44 | I23: 165 | J23: 66 | K23: 30 | L23: 192 | M23: 638 | N23: 29 | O23: 62 | P23: 115 | Q23: 74 | R23: 33 | S23: 93 | T23: 14 | U23: 257 | V23: 33 | W23: 196 | X23: 47 | Y23: 113 | Z23: 83 | AA23: 32 | AB23: 68 | AC23: 67 | AD23: 65 | AE23: 112 | AF23: 27 | AG23: 148 | AH23: 267 | AI23: 53 | AJ23: 40 | AK23: 56 | AL23: =SUM(B23:AK23) -> 4134 | AM23: =AVERAGE(B23:AK23) -> 114.8333333 | AN23: =IF(AM23>=20,TRUE()) -> 1
A24: AAAAGTGCTTACAGTGCAGGTAGA_ssc-miR-106a | B24: 30 | C24: 92 | D24: 57 | E24: 28 | F24: 69 | G24: 76 | H24: 40 | I24: 98 | J24: 47 | K24: 35 | L24: 108 | M24: 220 | N24: 18 | O24: 48 | P24: 66 | Q24: 36 | R24: 23 | S24: 51 | T24: 9 | U24: 76 | V24: 18 | W24: 48 | X24: 25 | Y24: 42 | Z24: 57 | AA24: 19 | AB24: 18 | AC24: 29 | AD24: 40 | AE24: 61 | AF24: 25 | AG24: 59 | AH24: 99 | AI24: 33 | AJ24: 25 | AK24: 15 | AL24: =SUM(B24:AK24) -> 1840 | AM24: =AVERAGE(B24:AK24) -> 51.11111111 | AN24: =IF(AM24>=20,TRUE()) -> 1
A25: AAACCCGTAGATCCGATCTTGC_ssc-miR-99a | B25: 1 | C25: 17 | D25: 4 | E25: 21 | F25: 6 | G25: 8 | H25: 169 | I25: 23 | J25: 15 | K25: 14 | L25: 31 | M25: 13 | N25: 18 | O25: 20 | P25: 6 | Q25: 7 | R25: 39 | S25: 7 | T25: 2 | U25: 9 | V25: 5 | W25: 1 | X25: 10 | Y25: 5 | Z25: 45 | AA25: 21 | AB25: 2 | AC25: 9 | AD25: 15 | AE25: 27 | AF25: 33 | AG25: 10 | AH25: 37 | AI25: 21 | AJ25: 5 | AK25: 24 | AL25: =SUM(B25:AK25) -> 700 | AM25: =AVERAGE(B25:AK25) -> 19.44444444 | AN25: =IF(AM25>=20,TRUE()) -> 0
A26: AAACCCGTAGATCCGATCTTGT_ssc-miR-99a | B26: 6 | C26: 153 | D26: 29 | E26: 96 | F26: 40 | G26: 25 | H26: 634 | I26: 64 | J26: 67 | K26: 55 | L26: 174 | M26: 129 | N26: 65 | O26: 61 | P26: 55 | Q26: 33 | R26: 127 | S26: 63 | T26: 7 | U26: 68 | V26: 37 | W26: 22 | X26: 41 | Y26: 44 | Z26: 326 | AA26: 143 | AB26: 5 | AC26: 45 | AD26: 84 | AE26: 106 | AF26: 87 | AG26: 53 | AH26: 155 | AI26: 54 | AJ26: 39 | AK26: 90 | AL26: =SUM(B26:AK26) -> 3282 | AM26: =AVERAGE(B26:AK26) -> 91.16666667 | AN26: =IF(AM26>=20,TRUE()) -> 1
A27: AAACCGTTACCATTACTGAGT_ssc-miR-451 | B27: 1 | C27: 0 | D27: 1 | E27: 5 | F27: 2 | G27: 23 | H27: 29 | I27: 1 | J27: 2 | K27: 4 | L27: 1 | M27: 3 | N27: 32 | O27: 8 | P27: 2 | Q27: 0 | R27: 2 | S27: 622 | T27: 1 | U27: 0 | V27: 1 | W27: 3 | X27: 13 | Y27: 45 | Z27: 11 | AA27: 10 | AB27: 2 | AC27: 2 | AD27: 14 | AE27: 8 | AF27: 108 | AG27: 0 | AH27: 9 | AI27: 1 | AJ27: 315 | AK27: 642 | AL27: =SUM(B27:AK27) -> 1923 | AM27: =AVERAGE(B27:AK27) -> 53.41666667 | AN27: =IF(AM27>=20,TRUE()) -> 1
A28: AAACGTGGATGTACTTGCT_hsa-miR-302a-5p | B28: 20 | C28: 38 | D28: 18 | E28: 51 | F28: 43 | G28: 35 | H28: 84 | I28: 43 | J28: 34 | K28: 31 | L28: 50 | M28: 41 | N28: 29 | O28: 59 | P28: 59 | Q28: 38 | R28: 39 | S28: 41 | T28: 25 | U28: 42 | V28: 14 | W28: 17 | X28: 34 | Y28: 41 | Z28: 50 | AA28: 37 | AB28: 18 | AC28: 40 | AD28: 54 | AE28: 59 | AF28: 30 | AG28: 80 | AH28: 35 | AI28: 25 | AJ28: 67 | AK28: 37 | AL28: =SUM(B28:AK28) -> 1458 | AM28: =AVERAGE(B28:AK28) -> 40.5 | AN28: =IF(AM28>=20,TRUE()) -> 1
A29: AAACGTGGATGTACTTGCTC_hsa-miR-302a-5p | B29: 6 | C29: 29 | D29: 28 | E29: 116 | F29: 25 | G29: 69 | H29: 124 | I29: 63 | J29: 64 | K29: 17 | L29: 46 | M29: 21 | N29: 58 | O29: 76 | P29: 52 | Q29: 40 | R29: 65 | S29: 32 | T29: 25 | U29: 26 | V29: 27 | W29: 23 | X29: 62 | Y29: 55 | Z29: 48 | AA29: 34 | AB29: 10 | AC29: 74 | AD29: 57 | AE29: 83 | AF29: 58 | AG29: 100 | AH29: 86 | AI29: 33 | AJ29: 45 | AK29: 58 | AL29: =SUM(B29:AK29) -> 1835 | AM29: =AVERAGE(B29:AK29) -> 50.97222222 | AN29: =IF(AM29>=20,TRUE()) -> 1
A30: AAACGTGGATGTACTTGCTT_hsa-miR-302a-5p | B30: 120 | C30: 284 | D30: 224 | E30: 351 | F30: 358 | G30: 360 | H30: 467 | I30: 365 | J30: 292 | K30: 190 | L30: 386 | M30: 333 | N30: 168 | O30: 322 | P30: 629 | Q30: 331 | R30: 215 | S30: 329 | T30: 128 | U30: 287 | V30: 109 | W30: 173 | X30: 246 | Y30: 265 | Z30: 333 | AA30: 208 | AB30: 145 | AC30: 241 | AD30: 267 | AE30: 382 | AF30: 260 | AG30: 559 | AH30: 389 | AI30: 171 | AJ30: 447 | AK30: 275 | AL30: =SUM(B30:AK30) -> 10609 | AM30: =AVERAGE(B30:AK30) -> 294.6944444 | AN30: =IF(AM30>=20,TRUE()) -> 1
A31: AAACGTGGATGTACTTGCTTT_bta-mir-302a | B31: 892 | C31: 1731 | D31: 1175 | E31: 2124 | F31: 1959 | G31: 2163 | H31: 2557 | I31: 2571 | J31: 1864 | K31: 1156 | L31: 2570 | M31: 2309 | N31: 992 | O31: 1954 | P31: 3894 | Q31: 2095 | R31: 1543 | S31: 1920 | T31: 1081 | U31: 1758 | V31: 740 | W31: 927 | X31: 1337 | Y31: 1595 | Z31: 1782 | AA31: 1371 | AB31: 985 | AC31: 1680 | AD31: 1549 | AE31: 2020 | AF31: 1264 | AG31: 2888 | AH31: 2299 | AI31: 1021 | AJ31: 2237 | AK31: 1359 | AL31: =SUM(B31:AK31) -> 63362 | AM31: =AVERAGE(B31:AK31) -> 1760.055556 | AN31: =IF(AM31>=20,TRUE()) -> 1
A32: AAACGTGGATGTACTTGCTTTA_bta-mir-302a | B32: 18 | C32: 48 | D32: 27 | E32: 30 | F32: 31 | G32: 39 | H32: 40 | I32: 30 | J32: 31 | K32: 14 | L32: 49 | M32: 62 | N32: 12 | O32: 25 | P32: 70 | Q32: 41 | R32: 10 | S32: 38 | T32: 12 | U32: 31 | V32: 7 | W32: 23 | X32: 16 | Y32: 27 | Z32: 21 | AA32: 14 | AB32: 19 | AC32: 19 | AD32: 23 | AE32: 40 | AF32: 16 | AG32: 32 | AH32: 35 | AI32: 14 | AJ32: 32 | AK32: 16 | AL32: =SUM(B32:AK32) -> 1012 | AM32: =AVERAGE(B32:AK32) -> 28.11111111 | AN32: =IF(AM32>=20,TRUE()) -> 1
A33: AAACTGTGGGGGCACTT_ssc-miR-371-5p | B33: 6 | C33: 5 | D33: 9 | E33: 12 | F33: 14 | G33: 13 | H33: 9 | I33: 25 | J33: 9 | K33: 16 | L33: 11 | M33: 3 | N33: 5 | O33: 13 | P33: 15 | Q33: 4 | R33: 16 | S33: 8 | T33: 15 | U33: 4 | V33: 10 | W33: 10 | X33: 30 | Y33: 12 | Z33: 20 | AA33: 6 | AB33: 7 | AC33: 12 | AD33: 22 | AE33: 24 | AF33: 16 | AG33: 29 | AH33: 6 | AI33: 8 | AJ33: 16 | AK33: 13 | AL33: =SUM(B33:AK33) -> 453 | AM33: =AVERAGE(B33:AK33) -> 12.58333333 | AN33: =IF(AM33>=20,TRUE()) -> 0
A34: AAACTGTGGGGGCACTTT_ssc-miR-371-5p | B34: 31 | C34: 35 | D34: 35 | E34: 53 | F34: 53 | G34: 77 | H34: 69 | I34: 63 | J34: 33 | K34: 51 | L34: 65 | M34: 29 | N34: 33 | O34: 71 | P34: 55 | Q34: 50 | R34: 35 | S34: 53 | T34: 42 | U34: 28 | V34: 47 | W34: 28 | X34: 78 | Y34: 45 | Z34: 61 | AA34: 41 | AB34: 24 | AC34: 58 | AD34: 51 | AE34: 73 | AF34: 48 | AG34: 92 | AH34: 68 | AI34: 13 | AJ34: 52 | AK34: 31 | AL34: =SUM(B34:AK34) -> 1771 | AM34: =AVERAGE(B34:AK34) -> 49.19444444 | AN34: =IF(AM34>=20,TRUE()) -> 1
A35: AAACTGTGGGGGCACTTTC_ssc-miR-371-5p | B35: 22 | C35: 18 | D35: 7 | E35: 11 | F35: 27 | G35: 23 | H35: 18 | I35: 27 | J35: 11 | K35: 17 | L35: 29 | M35: 10 | N35: 4 | O35: 16 | P35: 21 | Q35: 17 | R35: 13 | S35: 10 | T35: 18 | U35: 11 | V35: 12 | W35: 14 | X35: 18 | Y35: 11 | Z35: 24 | AA35: 18 | AB35: 12 | AC35: 15 | AD35: 5 | AE35: 10 | AF35: 12 | AG35: 37 | AH35: 19 | AI35: 2 | AJ35: 18 | AK35: 7 | AL35: =SUM(B35:AK35) -> 564 | AM35: =AVERAGE(B35:AK35) -> 15.66666667 | AN35: =IF(AM35>=20,TRUE()) -> 0
A36: AAAGAATTCTCCTTTTGGGC_ssc-miR-186 | B36: 5 | C36: 23 | D36: 11 | E36: 11 | F36: 16 | G36: 8 | H36: 20 | I36: 15 | J36: 8 | K36: 28 | L36: 32 | M36: 28 | N36: 6 | O36: 10 | P36: 18 | Q36: 6 | R36: 11 | S36: 19 | T36: 9 | U36: 28 | V36: 6 | W36: 11 | X36: 16 | Y36: 10 | Z36: 36 | AA36: 23 | AB36: 7 | AC36: 8 | AD36: 15 | AE36: 25 | AF36: 8 | AG36: 17 | AH36: 27 | AI36: 11 | AJ36: 17 | AK36: 21 | AL36: =SUM(B36:AK36) -> 570 | AM36: =AVERAGE(B36:AK36) -> 15.83333333 | AN36: =IF(AM36>=20,TRUE()) -> 0
A37: AAAGAATTCTCCTTTTGGGCT_ssc-miR-186 | B37: 14 | C37: 65 | D37: 44 | E37: 48 | F37: 50 | G37: 75 | H37: 77 | I37: 58 | J37: 38 | K37: 30 | L37: 83 | M37: 96 | N37: 19 | O37: 41 | P37: 38 | Q37: 15 | R37: 33 | S37: 40 | T37: 14 | U37: 67 | V37: 19 | W37: 39 | X37: 40 | Y37: 52 | Z37: 67 | AA37: 18 | AB37: 19 | AC37: 33 | AD37: 53 | AE37: 83 | AF37: 46 | AG37: 50 | AH37: 128 | AI37: 43 | AJ37: 30 | AK37: 57 | AL37: =SUM(B37:AK37) -> 1722 | AM37: =AVERAGE(B37:AK37) -> 47.83333333 | AN37: =IF(AM37>=20,TRUE()) -> 1
A38: AAAGAATTCTCCTTTTGGGCTT_ssc-miR-186 | B38: 17 | C38: 36 | D38: 24 | E38: 21 | F38: 36 | G38: 70 | H38: 38 | I38: 53 | J38: 29 | K38: 11 | L38: 64 | M38: 80 | N38: 11 | O38: 21 | P38: 27 | Q38: 12 | R38: 16 | S38: 28 | T38: 10 | U38: 37 | V38: 9 | W38: 41 | X38: 18 | Y38: 38 | Z38: 32 | AA38: 12 | AB38: 24 | AC38: 32 | AD38: 21 | AE38: 36 | AF38: 23 | AG38: 30 | AH38: 81 | AI38: 23 | AJ38: 17 | AK38: 24 | AL38: =SUM(B38:AK38) -> 1102 | AM38: =AVERAGE(B38:AK38) -> 30.61111111 | AN38: =IF(AM38>=20,TRUE()) -> 1
A39: AAAGCACACGGCCTGCAGAGAGG_ENSSSCG00000026843 | B39: 23 | C39: 43 | D39: 24 | E39: 18 | F39: 36 | G39: 21 | H39: 30 | I39: 33 | J39: 35 | K39: 25 | L39: 75 | M39: 87 | N39: 8 | O39: 34 | P39: 54 | Q39: 33 | R39: 13 | S39: 41 | T39: 43 | U39: 21 | V39: 24 | W39: 11 | X39: 13 | Y39: 27 | Z39: 38 | AA39: 25 | AB39: 24 | AC39: 17 | AD39: 19 | AE39: 14 | AF39: 10 | AG39: 34 | AH39: 42 | AI39: 11 | AJ39: 23 | AK39: 12 | AL39: =SUM(B39:AK39) -> 1041 | AM39: =AVERAGE(B39:AK39) -> 28.91666667 | AN39: =IF(AM39>=20,TRUE()) -> 1
A40: AAAGCACACGGCCTGCAGAGAGT_hsa-mir-330 | B40: 3 | C40: 15 | D40: 7 | E40: 21 | F40: 13 | G40: 6 | H40: 35 | I40: 13 | J40: 4 | K40: 4 | L40: 17 | M40: 16 | N40: 5 | O40: 22 | P40: 19 | Q40: 12 | R40: 12 | S40: 8 | T40: 5 | U40: 8 | V40: 11 | W40: 1 | X40: 11 | Y40: 6 | Z40: 19 | AA40: 7 | AB40: 8 | AC40: 12 | AD40: 9 | AE40: 12 | AF40: 7 | AG40: 15 | AH40: 22 | AI40: 7 | AJ40: 12 | AK40: 14 | AL40: =SUM(B40:AK40) -> 418 | AM40: =AVERAGE(B40:AK40) -> 11.61111111 | AN40: =IF(AM40>=20,TRUE()) -> 0
A41: AAAGCTGGGTTGAGAGGGC_ssc-miR-320 | B41: 16 | C41: 14 | D41: 16 | E41: 29 | F41: 17 | G41: 15 | H41: 28 | I41: 22 | J41: 16 | K41: 55 | L41: 39 | M41: 23 | N41: 5 | O41: 18 | P41: 23 | Q41: 15 | R41: 23 | S41: 25 | T41: 38 | U41: 22 | V41: 29 | W41: 14 | X41: 15 | Y41: 13 | Z41: 32 | AA41: 31 | AB41: 17 | AC41: 19 | AD41: 17 | AE41: 20 | AF41: 15 | AG41: 28 | AH41: 31 | AI41: 8 | AJ41: 36 | AK41: 16 | AL41: =SUM(B41:AK41) -> 800 | AM41: =AVERAGE(B41:AK41) -> 22.22222222 | AN41: =IF(AM41>=20,TRUE()) -> 1
A42: AAAGCTGGGTTGAGAGGGCG_ssc-miR-320 | B42: 31 | C42: 57 | D42: 67 | E42: 22 | F42: 33 | G42: 34 | H42: 34 | I42: 31 | J42: 29 | K42: 44 | L42: 51 | M42: 61 | N42: 17 | O42: 38 | P42: 36 | Q42: 14 | R42: 27 | S42: 31 | T42: 39 | U42: 36 | V42: 46 | W42: 29 | X42: 19 | Y42: 39 | Z42: 32 | AA42: 31 | AB42: 7 | AC42: 21 | AD42: 25 | AE42: 48 | AF42: 14 | AG42: 37 | AH42: 57 | AI42: 16 | AJ42: 49 | AK42: 25 | AL42: =SUM(B42:AK42) -> 1227 | AM42: =AVERAGE(B42:AK42) -> 34.08333333 | AN42: =IF(AM42>=20,TRUE()) -> 1
A43: AAAGCTGGGTTGAGAGGGCGA_ssc-miR-320 | B43: 92 | C43: 194 | D43: 156 | E43: 68 | F43: 132 | G43: 140 | H43: 58 | I43: 126 | J43: 65 | K43: 71 | L43: 163 | M43: 309 | N43: 27 | O43: 102 | P43: 102 | Q43: 59 | R43: 68 | S43: 117 | T43: 60 | U43: 119 | V43: 56 | W43: 133 | X43: 41 | Y43: 92 | Z43: 101 | AA43: 70 | AB43: 45 | AC43: 65 | AD43: 57 | AE43: 107 | AF43: 64 | AG43: 64 | AH43: 214 | AI43: 60 | AJ43: 95 | AK43: 62 | AL43: =SUM(B43:AK43) -> 3554 | AM43: =AVERAGE(B43:AK43) -> 98.72222222 | AN43: =IF(AM43>=20,TRUE()) -> 1
A44: AAAGCTGGGTTGAGAGGGCGAA_ssc-miR-320 | B44: 138 | C44: 169 | D44: 157 | E44: 66 | F44: 136 | G44: 136 | H44: 62 | I44: 163 | J44: 90 | K44: 70 | L44: 193 | M44: 356 | N44: 29 | O44: 84 | P44: 107 | Q44: 68 | R44: 59 | S44: 96 | T44: 87 | U44: 149 | V44: 66 | W44: 142 | X44: 53 | Y44: 101 | Z44: 90 | AA44: 41 | AB44: 56 | AC44: 77 | AD44: 74 | AE44: 97 | AF44: 70 | AG44: 83 | AH44: 242 | AI44: 69 | AJ44: 102 | AK44: 57 | AL44: =SUM(B44:AK44) -> 3835 | AM44: =AVERAGE(B44:AK44) -> 106.5277778 | AN44: =IF(AM44>=20,TRUE()) -> 1
A45: AAAGCTGGGTTGAGAGGGCGAAA_ssc-miR-320 | B45: 88 | C45: 106 | D45: 82 | E45: 30 | F45: 64 | G45: 86 | H45: 27 | I45: 97 | J45: 56 | K45: 46 | L45: 108 | M45: 178 | N45: 18 | O45: 51 | P45: 56 | Q45: 34 | R45: 22 | S45: 64 | T45: 61 | U45: 86 | V45: 45 | W45: 53 | X45: 28 | Y45: 57 | Z45: 68 | AA45: 29 | AB45: 40 | AC45: 42 | AD45: 50 | AE45: 56 | AF45: 39 | AG45: 56 | AH45: 103 | AI45: 28 | AJ45: 56 | AK45: 26 | AL45: =SUM(B45:AK45) -> 2136 | AM45: =AVERAGE(B45:AK45) -> 59.33333333 | AN45: =IF(AM45>=20,TRUE()) -> 1
A46: AAAGCTGGGTTGAGAGGGCGAAAA_hsa-miR-320c | B46: 28 | C46: 16 | D46: 15 | E46: 9 | F46: 13 | G46: 12 | H46: 4 | I46: 13 | J46: 8 | K46: 17 | L46: 18 | M46: 31 | N46: 6 | O46: 11 | P46: 13 | Q46: 7 | R46: 2 | S46: 16 | T46: 9 | U46: 12 | V46: 5 | W46: 13 | X46: 0 | Y46: 8 | Z46: 6 | AA46: 4 | AB46: 2 | AC46: 6 | AD46: 8 | AE46: 11 | AF46: 7 | AG46: 9 | AH46: 16 | AI46: 3 | AJ46: 15 | AK46: 3 | AL46: =SUM(B46:AK46) -> 376 | AM46: =AVERAGE(B46:AK46) -> 10.44444444 | AN46: =IF(AM46>=20,TRUE()) -> 0
A47: AAAGCTGGGTTGAGAGGGCGAAG_ssc-miR-320 | B47: 18 | C47: 12 | D47: 16 | E47: 17 | F47: 14 | G47: 11 | H47: 9 | I47: 18 | J47: 19 | K47: 11 | L47: 23 | M47: 30 | N47: 8 | O47: 29 | P47: 15 | Q47: 14 | R47: 7 | S47: 20 | T47: 15 | U47: 10 | V47: 22 | W47: 12 | X47: 9 | Y47: 7 | Z47: 4 | AA47: 7 | AB47: 4 | AC47: 12 | AD47: 18 | AE47: 15 | AF47: 9 | AG47: 15 | AH47: 16 | AI47: 2 | AJ47: 15 | AK47: 11 | AL47: =SUM(B47:AK47) -> 494 | AM47: =AVERAGE(B47:AK47) -> 13.72222222 | AN47: =IF(AM47>=20,TRUE()) -> 0
A48: AAAGCTGGGTTGAGAGGGCGAAT_ssc-miR-320 | B48: 19 | C48: 28 | D48: 14 | E48: 15 | F48: 38 | G48: 47 | H48: 20 | I48: 31 | J48: 29 | K48: 14 | L48: 39 | M48: 32 | N48: 16 | O48: 33 | P48: 24 | Q48: 19 | R48: 32 | S48: 15 | T48: 18 | U48: 14 | V48: 15 | W48: 24 | X48: 22 | Y48: 28 | Z48: 23 | AA48: 14 | AB48: 11 | AC48: 15 | AD48: 27 | AE48: 28 | AF48: 25 | AG48: 32 | AH48: 39 | AI48: 7 | AJ48: 29 | AK48: 14 | AL48: =SUM(B48:AK48) -> 850 | AM48: =AVERAGE(B48:AK48) -> 23.61111111 | AN48: =IF(AM48>=20,TRUE()) -> 1
A49: AAAGCTGGGTTGAGAGGGCGAT_ssc-miR-320 | B49: 9 | C49: 15 | D49: 9 | E49: 15 | F49: 16 | G49: 36 | H49: 23 | I49: 23 | J49: 8 | K49: 8 | L49: 15 | M49: 12 | N49: 14 | O49: 25 | P49: 14 | Q49: 11 | R49: 4 | S49: 16 | T49: 3 | U49: 10 | V49: 12 | W49: 12 | X49: 12 | Y49: 21 | Z49: 13 | AA49: 5 | AB49: 5 | AC49: 11 | AD49: 9 | AE49: 13 | AF49: 19 | AG49: 16 | AH49: 42 | AI49: 8 | AJ49: 12 | AK49: 9 | AL49: =SUM(B49:AK49) -> 505 | AM49: =AVERAGE(B49:AK49) -> 14.02777778 | AN49: =IF(AM49>=20,TRUE()) -> 0
A50: AAAGCTGGGTTGAGAGGGCGT_ssc-miR-320 | B50: 7 | C50: 8 | D50: 9 | E50: 12 | F50: 13 | G50: 19 | H50: 20 | I50: 15 | J50: 15 | K50: 7 | L50: 15 | M50: 14 | N50: 8 | O50: 12 | P50: 8 | Q50: 6 | R50: 7 | S50: 12 | T50: 22 | U50: 6 | V50: 4 | W50: 11 | X50: 7 | Y50: 21 | Z50: 15 | AA50: 9 | AB50: 0 | AC50: 8 | AD50: 9 | AE50: 9 | AF50: 8 | AG50: 6 | AH50: 25 | AI50: 7 | AJ50: 14 | AK50: 16 | AL50: =SUM(B50:AK50) -> 404 | AM50: =AVERAGE(B50:AK50) -> 11.22222222 | AN50: =IF(AM50>=20,TRUE()) -> 0
A51: AAAGTGCTGACAGTGCAGATA_bta-miR-106b | B51: 8 | C51: 13 | D51: 13 | E51: 8 | F51: 10 | G51: 22 | H51: 4 | I51: 22 | J51: 8 | K51: 1 | L51: 16 | M51: 63 | N51: 4 | O51: 4 | P51: 13 | Q51: 7 | R51: 2 | S51: 13 | T51: 4 | U51: 32 | V51: 1 | W51: 21 | X51: 14 | Y51: 14 | Z51: 4 | AA51: 5 | AB51: 6 | AC51: 6 | AD51: 15 | AE51: 8 | AF51: 3 | AG51: 9 | AH51: 19 | AI51: 8 | AJ51: 3 | AK51: 9 | AL51: =SUM(B51:AK51) -> 412 | AM51: =AVERAGE(B51:AK51) -> 11.44444444 | AN51: =IF(AM51>=20,TRUE()) -> 0
A52: AAAGTGCTGTTCGTGCAGGTAG_hsa-miR-93-5p | B52: 99 | C52: 245 | D52: 164 | E52: 74 | F52: 226 | G52: 212 | H52: 97 | I52: 214 | J52: 105 | K52: 70 | L52: 290 | M52: 626 | N52: 38 | O52: 122 | P52: 129 | Q52: 96 | R52: 55 | S52: 103 | T52: 35 | U52: 204 | V52: 52 | W52: 162 | X52: 89 | Y52: 130 | Z52: 113 | AA52: 59 | AB52: 66 | AC52: 74 | AD52: 112 | AE52: 136 | AF52: 73 | AG52: 155 | AH52: 311 | AI52: 88 | AJ52: 89 | AK52: 95 | AL52: =SUM(B52:AK52) -> 5008 | AM52: =AVERAGE(B52:AK52) -> 139.1111111 | AN52: =IF(AM52>=20,TRUE()) -> 1
A53: AAAGTGCTGTTCGTGCAGGTAGA_hsa-miR-93-5p | B53: 13 | C53: 40 | D53: 15 | E53: 12 | F53: 27 | G53: 19 | H53: 12 | I53: 25 | J53: 13 | K53: 14 | L53: 38 | M53: 69 | N53: 9 | O53: 8 | P53: 27 | Q53: 8 | R53: 11 | S53: 24 | T53: 9 | U53: 22 | V53: 3 | W53: 17 | X53: 6 | Y53: 14 | Z53: 22 | AA53: 8 | AB53: 10 | AC53: 12 | AD53: 13 | AE53: 17 | AF53: 8 | AG53: 16 | AH53: 29 | AI53: 13 | AJ53: 5 | AK53: 5 | AL53: =SUM(B53:AK53) -> 613 | AM53: =AVERAGE(B53:AK53) -> 17.02777778 | AN53: =IF(AM53>=20,TRUE()) -> 0
A54: AAAGTGCTTACAGTGCAGGT_ssc-miR-106a | B54: 2 | C54: 14 | D54: 10 | E54: 4 | F54: 10 | G54: 17 | H54: 8 | I54: 11 | J54: 5 | K54: 3 | L54: 12 | M54: 36 | N54: 2 | O54: 5 | P54: 4 | Q54: 3 | R54: 2 | S54: 4 | T54: 2 | U54: 12 | V54: 2 | W54: 10 | X54: 6 | Y54: 11 | Z54: 5 | AA54: 1 | AB54: 0 | AC54: 6 | AD54: 8 | AE54: 13 | AF54: 2 | AG54: 7 | AH54: 23 | AI54: 7 | AJ54: 4 | AK54: 9 | AL54: =SUM(B54:AK54) -> 280 | AM54: =AVERAGE(B54:AK54) -> 7.777777778 | AN54: =IF(AM54>=20,TRUE()) -> 0
A55: AAAGTGCTTACAGTGCAGGTAA_ssc-miR-106a | B55: 3 | C55: 19 | D55: 10 | E55: 8 | F55: 6 | G55: 28 | H55: 5 | I55: 39 | J55: 13 | K55: 2 | L55: 23 | M55: 50 | N55: 2 | O55: 13 | P55: 6 | Q55: 4 | R55: 1 | S55: 2 | T55: 0 | U55: 5 | V55: 1 | W55: 9 | X55: 7 | Y55: 12 | Z55: 7 | AA55: 1 | AB55: 1 | AC55: 6 | AD55: 17 | AE55: 15 | AF55: 4 | AG55: 12 | AH55: 50 | AI55: 17 | AJ55: 1 | AK55: 8 | AL55: =SUM(B55:AK55) -> 407 | AM55: =AVERAGE(B55:AK55) -> 11.30555556 | AN55: =IF(AM55>=20,TRUE()) -> 0
A56: AAAGTGCTTACAGTGCAGGTAG_ssc-miR-106a | B56: 143 | C56: 378 | D56: 288 | E56: 71 | F56: 320 | G56: 421 | H56: 109 | I56: 304 | J56: 149 | K56: 121 | L56: 353 | M56: 1269 | N56: 51 | O56: 143 | P56: 183 | Q56: 129 | R56: 63 | S56: 191 | T56: 70 | U56: 436 | V56: 66 | W56: 343 | X56: 107 | Y56: 229 | Z56: 138 | AA56: 64 | AB56: 97 | AC56: 113 | AD56: 146 | AE56: 175 | AF56: 82 | AG56: 270 | AH56: 530 | AI56: 111 | AJ56: 97 | AK56: 122 | AL56: =SUM(B56:AK56) -> 7882 | AM56: =AVERAGE(B56:AK56) -> 218.9444444 | AN56: =IF(AM56>=20,TRUE()) -> 1
A57: AAAGTGCTTACAGTGCAGGTAGA_ssc-miR-106a | B57: 76 | C57: 194 | D57: 81 | E57: 69 | F57: 156 | G57: 137 | H57: 65 | I57: 135 | J57: 101 | K57: 93 | L57: 228 | M57: 435 | N57: 34 | O57: 73 | P57: 129 | Q57: 92 | R57: 45 | S57: 98 | T57: 39 | U57: 108 | V57: 55 | W57: 110 | X57: 50 | Y57: 81 | Z57: 109 | AA57: 40 | AB57: 53 | AC57: 92 | AD57: 96 | AE57: 102 | AF57: 46 | AG57: 170 | AH57: 173 | AI57: 69 | AJ57: 83 | AK57: 54 | AL57: =SUM(B57:AK57) -> 3771 | AM57: =AVERAGE(B57:AK57) -> 104.75 | AN57: =IF(AM57>=20,TRUE()) -> 1
A58: AAAGTGCTTATAGTGCAGGT_ssc-miR-20a | B58: 5 | C58: 16 | D58: 12 | E58: 7 | F58: 26 | G58: 25 | H58: 9 | I58: 13 | J58: 9 | K58: 6 | L58: 15 | M58: 42 | N58: 4 | O58: 5 | P58: 12 | Q58: 6 | R58: 1 | S58: 9 | T58: 2 | U58: 12 | V58: 4 | W58: 9 | X58: 8 | Y58: 12 | Z58: 7 | AA58: 2 | AB58: 7 | AC58: 7 | AD58: 10 | AE58: 14 | AF58: 7 | AG58: 17 | AH58: 25 | AI58: 7 | AJ58: 2 | AK58: 10 | AL58: =SUM(B58:AK58) -> 384 | AM58: =AVERAGE(B58:AK58) -> 10.66666667 | AN58: =IF(AM58>=20,TRUE()) -> 0
A59: AAAGTGCTTATAGTGCAGGTAA_ssc-miR-20a | B59: 5 | C59: 31 | D59: 16 | E59: 27 | F59: 21 | G59: 71 | H59: 24 | I59: 53 | J59: 18 | K59: 6 | L59: 30 | M59: 83 | N59: 11 | O59: 27 | P59: 11 | Q59: 13 | R59: 12 | S59: 16 | T59: 3 | U59: 22 | V59: 4 | W59: 22 | X59: 29 | Y59: 25 | Z59: 10 | AA59: 3 | AB59: 9 | AC59: 25 | AD59: 26 | AE59: 31 | AF59: 23 | AG59: 33 | AH59: 93 | AI59: 25 | AJ59: 7 | AK59: 22 | AL59: =SUM(B59:AK59) -> 887 | AM59: =AVERAGE(B59:AK59) -> 24.63888889 | AN59: =IF(AM59>=20,TRUE()) -> 1
A60: AAAGTGCTTATAGTGCAGGTAG_ssc-miR-20a | B60: 295 | C60: 664 | D60: 554 | E60: 323 | F60: 982 | G60: 956 | H60: 281 | I60: 726 | J60: 387 | K60: 295 | L60: 1030 | M60: 2003 | N60: 188 | O60: 452 | P60: 610 | Q60: 448 | R60: 211 | S60: 620 | T60: 133 | U60: 874 | V60: 172 | W60: 694 | X60: 319 | Y60: 555 | Z60: 466 | AA60: 225 | AB60: 295 | AC60: 333 | AD60: 374 | AE60: 609 | AF60: 261 | AG60: 884 | AH60: 1027 | AI60: 304 | AJ60: 364 | AK60: 333 | AL60: =SUM(B60:AK60) -> 19247 | AM60: =AVERAGE(B60:AK60) -> 534.6388889 | AN60: =IF(AM60>=20,TRUE()) -> 1
A61: AAAGTGCTTATAGTGCAGGTAGA_bta-miR-20a | B61: 30 | C61: 78 | D61: 54 | E61: 18 | F61: 78 | G61: 88 | H61: 24 | I61: 69 | J61: 40 | K61: 44 | L61: 86 | M61: 197 | N61: 9 | O61: 34 | P61: 69 | Q61: 39 | R61: 19 | S61: 51 | T61: 13 | U61: 67 | V61: 10 | W61: 55 | X61: 30 | Y61: 31 | Z61: 45 | AA61: 23 | AB61: 31 | AC61: 26 | AD61: 42 | AE61: 60 | AF61: 11 | AG61: 64 | AH61: 72 | AI61: 30 | AJ61: 33 | AK61: 29 | AL61: =SUM(B61:AK61) -> 1699 | AM61: =AVERAGE(B61:AK61) -> 47.19444444 | AN61: =IF(AM61>=20,TRUE()) -> 1
A62: AAAGTGCTTCCATGTTTTAGA_bta-miR-302a | B62: 6 | C62: 9 | D62: 10 | E62: 13 | F62: 7 | G62: 31 | H62: 20 | I62: 26 | J62: 16 | K62: 1 | L62: 16 | M62: 28 | N62: 9 | O62: 18 | P62: 11 | Q62: 5 | R62: 5 | S62: 8 | T62: 1 | U62: 8 | V62: 6 | W62: 8 | X62: 13 | Y62: 23 | Z62: 10 | AA62: 3 | AB62: 6 | AC62: 14 | AD62: 8 | AE62: 27 | AF62: 12 | AG62: 11 | AH62: 42 | AI62: 15 | AJ62: 1 | AK62: 11 | AL62: =SUM(B62:AK62) -> 458 | AM62: =AVERAGE(B62:AK62) -> 12.72222222 | AN62: =IF(AM62>=20,TRUE()) -> 0
A63: AAAGTGCTTCCATGTTTTAGC_bta-miR-302a | B63: 120 | C63: 226 | D63: 168 | E63: 242 | F63: 204 | G63: 343 | H63: 336 | I63: 476 | J63: 217 | K63: 76 | L63: 321 | M63: 375 | N63: 118 | O63: 263 | P63: 266 | Q63: 164 | R63: 145 | S63: 152 | T63: 84 | U63: 208 | V63: 121 | W63: 127 | X63: 180 | Y63: 277 | Z63: 146 | AA63: 84 | AB63: 70 | AC63: 215 | AD63: 211 | AE63: 296 | AF63: 166 | AG63: 341 | AH63: 481 | AI63: 140 | AJ63: 140 | AK63: 182 | AL63: =SUM(B63:AK63) -> 7681 | AM63: =AVERAGE(B63:AK63) -> 213.3611111 | AN63: =IF(AM63>=20,TRUE()) -> 1
A64: AAAGTGCTTCCATGTTTTAGG_bta-miR-302a | B64: 6 | C64: 41 | D64: 16 | E64: 10 | F64: 7 | G64: 27 | H64: 17 | I64: 26 | J64: 70 | K64: 4 | L64: 21 | M64: 25 | N64: 5 | O64: 87 | P64: 20 | Q64: 5 | R64: 59 | S64: 6 | T64: 1 | U64: 8 | V64: 43 | W64: 9 | X64: 12 | Y64: 21 | Z64: 12 | AA64: 4 | AB64: 4 | AC64: 14 | AD64: 17 | AE64: 19 | AF64: 3 | AG64: 12 | AH64: 24 | AI64: 15 | AJ64: 3 | AK64: 33 | AL64: =SUM(B64:AK64) -> 706 | AM64: =AVERAGE(B64:AK64) -> 19.61111111 | AN64: =IF(AM64>=20,TRUE()) -> 0
A65: AAAGTGCTTCCATGTTTTAGTA_bta-miR-302a | B65: 58 | C65: 153 | D65: 88 | E65: 41 | F65: 131 | G65: 96 | H65: 59 | I65: 109 | J65: 50 | K65: 29 | L65: 134 | M65: 321 | N65: 20 | O65: 75 | P65: 143 | Q65: 65 | R65: 17 | S65: 94 | T65: 15 | U65: 139 | V65: 20 | W65: 73 | X65: 41 | Y65: 76 | Z65: 53 | AA65: 34 | AB65: 49 | AC65: 35 | AD65: 56 | AE65: 72 | AF65: 36 | AG65: 116 | AH65: 110 | AI65: 38 | AJ65: 77 | AK65: 36 | AL65: =SUM(B65:AK65) -> 2759 | AM65: =AVERAGE(B65:AK65) -> 76.63888889 | AN65: =IF(AM65>=20,TRUE()) -> 1
A66: AAAGTGCTTCCATGTTTTAGTG_bta-miR-302a | B66: 63 | C66: 264 | D66: 109 | E66: 55 | F66: 193 | G66: 147 | H66: 102 | I66: 128 | J66: 100 | K66: 59 | L66: 163 | M66: 435 | N66: 49 | O66: 126 | P66: 215 | Q66: 124 | R66: 49 | S66: 110 | T66: 35 | U66: 181 | V66: 34 | W66: 89 | X66: 54 | Y66: 120 | Z66: 108 | AA66: 70 | AB66: 54 | AC66: 49 | AD66: 78 | AE66: 116 | AF66: 47 | AG66: 136 | AH66: 112 | AI66: 39 | AJ66: 133 | AK66: 61 | AL66: =SUM(B66:AK66) -> 4007 | AM66: =AVERAGE(B66:AK66) -> 111.3055556 | AN66: =IF(AM66>=20,TRUE()) -> 1
A67: AAAGTGCTTCCATGTTTTAGTGA_bta-miR-302a | B67: 262 | C67: 1149 | D67: 440 | E67: 233 | F67: 766 | G67: 577 | H67: 455 | I67: 625 | J67: 326 | K67: 288 | L67: 742 | M67: 1806 | N67: 169 | O67: 419 | P67: 1088 | Q67: 640 | R67: 209 | S67: 434 | T67: 151 | U67: 670 | V67: 148 | W67: 348 | X67: 265 | Y67: 366 | Z67: 433 | AA67: 321 | AB67: 255 | AC67: 242 | AD67: 355 | AE67: 533 | AF67: 192 | AG67: 739 | AH67: 629 | AI67: 177 | AJ67: 537 | AK67: 245 | AL67: =SUM(B67:AK67) -> 17234 | AM67: =AVERAGE(B67:AK67) -> 478.7222222 | AN67: =IF(AM67>=20,TRUE()) -> 1
A68: AAAGTGCTTCCATGTTTTAGTGAA_bta-miR-302a | B68: 7 | C68: 26 | D68: 17 | E68: 12 | F68: 17 | G68: 11 | H68: 10 | I68: 21 | J68: 9 | K68: 9 | L68: 21 | M68: 69 | N68: 2 | O68: 8 | P68: 30 | Q68: 14 | R68: 6 | S68: 16 | T68: 3 | U68: 21 | V68: 7 | W68: 12 | X68: 8 | Y68: 11 | Z68: 9 | AA68: 11 | AB68: 2 | AC68: 4 | AD68: 9 | AE68: 21 | AF68: 1 | AG68: 16 | AH68: 11 | AI68: 5 | AJ68: 18 | AK68: 7 | AL68: =SUM(B68:AK68) -> 481 | AM68: =AVERAGE(B68:AK68) -> 13.36111111 | AN68: =IF(AM68>=20,TRUE()) -> 0
A69: AAAGTGCTTCCATGTTTTAGTGC_bta-miR-302a | B69: 13 | C69: 52 | D69: 30 | E69: 39 | F69: 41 | G69: 74 | H69: 84 | I69: 91 | J69: 67 | K69: 21 | L69: 87 | M69: 105 | N69: 17 | O69: 48 | P69: 77 | Q69: 52 | R69: 34 | S69: 39 | T69: 14 | U69: 38 | V69: 17 | W69: 23 | X69: 37 | Y69: 55 | Z69: 38 | AA69: 26 | AB69: 19 | AC69: 43 | AD69: 41 | AE69: 87 | AF69: 37 | AG69: 54 | AH69: 83 | AI69: 36 | AJ69: 28 | AK69: 31 | AL69: =SUM(B69:AK69) -> 1678 | AM69: =AVERAGE(B69:AK69) -> 46.61111111 | AN69: =IF(AM69>=20,TRUE()) -> 1
A70: AAAGTGCTTCCATGTTTTAGTGG_bta-miR-302a | B70: 13 | C70: 56 | D70: 22 | E70: 14 | F70: 29 | G70: 24 | H70: 19 | I70: 38 | J70: 53 | K70: 9 | L70: 31 | M70: 62 | N70: 8 | O70: 79 | P70: 31 | Q70: 13 | R70: 55 | S70: 14 | T70: 6 | U70: 35 | V70: 28 | W70: 15 | X70: 14 | Y70: 20 | Z70: 30 | AA70: 13 | AB70: 9 | AC70: 14 | AD70: 28 | AE70: 34 | AF70: 1 | AG70: 47 | AH70: 30 | AI70: 14 | AJ70: 17 | AK70: 20 | AL70: =SUM(B70:AK70) -> 945 | AM70: =AVERAGE(B70:AK70) -> 26.25 | AN70: =IF(AM70>=20,TRUE()) -> 1
A71: AAAGTGCTTCCATGTTTTAGTGT_bta-miR-302a | B71: 83 | C71: 282 | D71: 144 | E71: 125 | F71: 194 | G71: 233 | H71: 267 | I71: 300 | J71: 195 | K71: 97 | L71: 247 | M71: 469 | N71: 96 | O71: 195 | P71: 318 | Q71: 171 | R71: 115 | S71: 102 | T71: 49 | U71: 216 | V71: 70 | W71: 82 | X71: 125 | Y71: 164 | Z71: 152 | AA71: 86 | AB71: 60 | AC71: 115 | AD71: 168 | AE71: 239 | AF71: 77 | AG71: 191 | AH71: 295 | AI71: 100 | AJ71: 146 | AK71: 97 | AL71: =SUM(B71:AK71) -> 6065 | AM71: =AVERAGE(B71:AK71) -> 168.4722222 | AN71: =IF(AM71>=20,TRUE()) -> 1
A72: AAAGTTCTGAGACACTCCGACC_ssc-miR-148a-5p | B72: 6 | C72: 11 | D72: 2 | E72: 17 | F72: 13 | G72: 21 | H72: 22 | I72: 40 | J72: 15 | K72: 8 | L72: 26 | M72: 20 | N72: 18 | O72: 12 | P72: 9 | Q72: 11 | R72: 26 | S72: 13 | T72: 10 | U72: 2 | V72: 7 | W72: 5 | X72: 33 | Y72: 20 | Z72: 14 | AA72: 9 | AB72: 5 | AC72: 38 | AD72: 20 | AE72: 25 | AF72: 11 | AG72: 20 | AH72: 35 | AI72: 6 | AJ72: 13 | AK72: 12 | AL72: =SUM(B72:AK72) -> 575 | AM72: =AVERAGE(B72:AK72) -> 15.97222222 | AN72: =IF(AM72>=20,TRUE()) -> 0
A73: AAAGTTCTGAGACACTCCGACT_ssc-miR-148a-5p | B73: 30 | C73: 72 | D73: 15 | E73: 77 | F73: 126 | G73: 137 | H73: 116 | I73: 114 | J73: 73 | K73: 48 | L73: 163 | M73: 254 | N73: 57 | O73: 65 | P73: 96 | Q73: 67 | R73: 76 | S73: 54 | T73: 40 | U73: 39 | V73: 18 | W73: 48 | X73: 100 | Y73: 119 | Z73: 60 | AA73: 70 | AB73: 40 | AC73: 132 | AD73: 69 | AE73: 94 | AF73: 46 | AG73: 111 | AH73: 120 | AI73: 25 | AJ73: 85 | AK73: 54 | AL73: =SUM(B73:AK73) -> 2910 | AM73: =AVERAGE(B73:AK73) -> 80.83333333 | AN73: =IF(AM73>=20,TRUE()) -> 1
A74: AAATCAGTATGAATAAAGTCGTGATACTGTAAACGCTTTCTGATG_hsa-miR-3607-3p | B74: 19 | C74: 10 | D74: 3 | E74: 23 | F74: 42 | G74: 9 | H74: 21 | I74: 33 | J74: 30 | K74: 79 | L74: 43 | M74: 17 | N74: 17 | O74: 19 | P74: 38 | Q74: 68 | R74: 34 | S74: 44 | T74: 63 | U74: 16 | V74: 35 | W74: 7 | X74: 40 | Y74: 8 | Z74: 44 | AA74: 45 | AB74: 47 | AC74: 67 | AD74: 49 | AE74: 19 | AF74: 17 | AG74: 124 | AH74: 12 | AI74: 10 | AJ74: 89 | AK74: 20 | AL74: =SUM(B74:AK74) -> 1261 | AM74: =AVERAGE(B74:AK74) -> 35.02777778 | AN74: =IF(AM74>=20,TRUE()) -> 1
A75: AAATCAGTATGAATAAAGTCGTGATACTGTAAACGCTTTCTGATGTA_hsa-miR-3607-3p | B75: 14 | C75: 2 | D75: 1 | E75: 34 | F75: 30 | G75: 8 | H75: 9 | I75: 14 | J75: 12 | K75: 89 | L75: 22 | M75: 8 | N75: 16 | O75: 8 | P75: 42 | Q75: 97 | R75: 64 | S75: 45 | T75: 75 | U75: 5 | V75: 18 | W75: 2 | X75: 40 | Y75: 3 | Z75: 46 | AA75: 31 | AB75: 42 | AC75: 53 | AD75: 48 | AE75: 14 | AF75: 10 | AG75: 105 | AH75: 8 | AI75: 14 | AJ75: 92 | AK75: 11 | AL75: =SUM(B75:AK75) -> 1132 | AM75: =AVERAGE(B75:AK75) -> 31.44444444 | AN75: =IF(AM75>=20,TRUE()) -> 1
A76: AAATGGATTTTTGGA_bta-mir-1246 | B76: 59 | C76: 38 | D76: 26 | E76: 12 | F76: 46 | G76: 35 | H76: 33 | I76: 68 | J76: 12 | K76: 44 | L76: 53 | M76: 21 | N76: 27 | O76: 34 | P76: 41 | Q76: 13 | R76: 18 | S76: 22 | T76: 31 | U76: 30 | V76: 31 | W76: 27 | X76: 34 | Y76: 25 | Z76: 64 | AA76: 27 | AB76: 22 | AC76: 21 | AD76: 28 | AE76: 39 | AF76: 14 | AG76: 43 | AH76: 24 | AI76: 19 | AJ76: 43 | AK76: 15 | AL76: =SUM(B76:AK76) -> 1139 | AM76: =AVERAGE(B76:AK76) -> 31.63888889 | AN76: =IF(AM76>=20,TRUE()) -> 1
A77: AAATGGATTTTTGGAG_bta-mir-1246 | B77: 127 | C77: 153 | D77: 66 | E77: 46 | F77: 143 | G77: 165 | H77: 99 | I77: 210 | J77: 79 | K77: 108 | L77: 192 | M77: 54 | N77: 54 | O77: 161 | P77: 187 | Q77: 55 | R77: 85 | S77: 57 | T77: 162 | U77: 31 | V77: 148 | W77: 49 | X77: 125 | Y77: 61 | Z77: 186 | AA77: 128 | AB77: 66 | AC77: 126 | AD77: 64 | AE77: 119 | AF77: 56 | AG77: 127 | AH77: 66 | AI77: 48 | AJ77: 142 | AK77: 36 | AL77: =SUM(B77:AK77) -> 3781 | AM77: =AVERAGE(B77:AK77) -> 105.0277778 | AN77: =IF(AM77>=20,TRUE()) -> 1
A78: AAATGGATTTTTGGAGC_bta-mir-1246 | B78: 199 | C78: 220 | D78: 84 | E78: 74 | F78: 277 | G78: 197 | H78: 122 | I78: 270 | J78: 131 | K78: 186 | L78: 368 | M78: 88 | N78: 89 | O78: 214 | P78: 235 | Q78: 76 | R78: 101 | S78: 69 | T78: 208 | U78: 95 | V78: 124 | W78: 64 | X78: 209 | Y78: 55 | Z78: 231 | AA78: 152 | AB78: 96 | AC78: 138 | AD78: 87 | AE78: 194 | AF78: 98 | AG78: 188 | AH78: 72 | AI78: 75 | AJ78: 192 | AK78: 58 | AL78: =SUM(B78:AK78) -> 5336 | AM78: =AVERAGE(B78:AK78) -> 148.2222222 | AN78: =IF(AM78>=20,TRUE()) -> 1
A79: AAATGGATTTTTGGAGCA_bta-mir-1246 | B79: 8 | C79: 7 | D79: 6 | E79: 8 | F79: 5 | G79: 29 | H79: 16 | I79: 22 | J79: 10 | K79: 6 | L79: 5 | M79: 7 | N79: 16 | O79: 29 | P79: 4 | Q79: 1 | R79: 32 | S79: 2 | T79: 10 | U79: 5 | V79: 38 | W79: 1 | X79: 18 | Y79: 8 | Z79: 9 | AA79: 4 | AB79: 4 | AC79: 16 | AD79: 13 | AE79: 17 | AF79: 6 | AG79: 18 | AH79: 16 | AI79: 28 | AJ79: 3 | AK79: 3 | AL79: =SUM(B79:AK79) -> 430 | AM79: =AVERAGE(B79:AK79) -> 11.94444444 | AN79: =IF(AM79>=20,TRUE()) -> 0
A80: AAATGGATTTTTGGAGCC_bta-miR-1246 | B80: 60 | C80: 20 | D80: 16 | E80: 20 | F80: 31 | G80: 66 | H80: 45 | I80: 111 | J80: 33 | K80: 68 | L80: 42 | M80: 8 | N80: 84 | O80: 126 | P80: 24 | Q80: 7 | R80: 107 | S80: 10 | T80: 71 | U80: 12 | V80: 121 | W80: 6 | X80: 75 | Y80: 24 | Z80: 63 | AA80: 27 | AB80: 20 | AC80: 50 | AD80: 63 | AE80: 56 | AF80: 33 | AG80: 49 | AH80: 26 | AI80: 62 | AJ80: 30 | AK80: 26 | AL80: =SUM(B80:AK80) -> 1692 | AM80: =AVERAGE(B80:AK80) -> 47 | AN80: =IF(AM80>=20,TRUE()) -> 1
A81: AAATGGATTTTTGGAGCT_bta-miR-1246 | B81: 276 | C81: 164 | D81: 97 | E81: 99 | F81: 210 | G81: 271 | H81: 166 | I81: 346 | J81: 158 | K81: 422 | L81: 236 | M81: 55 | N81: 209 | O81: 509 | P81: 163 | Q81: 64 | R81: 300 | S81: 63 | T81: 322 | U81: 71 | V81: 383 | W81: 55 | X81: 264 | Y81: 114 | Z81: 203 | AA81: 124 | AB81: 98 | AC81: 172 | AD81: 203 | AE81: 222 | AF81: 147 | AG81: 203 | AH81: 133 | AI81: 202 | AJ81: 129 | AK81: 59 | AL81: =SUM(B81:AK81) -> 6912 | AM81: =AVERAGE(B81:AK81) -> 192 | AN81: =IF(AM81>=20,TRUE()) -> 1
A82: AAATGGATTTTTGGAGT_bta-miR-1246 | B82: 21 | C82: 26 | D82: 11 | E82: 31 | F82: 23 | G82: 69 | H82: 53 | I82: 102 | J82: 33 | K82: 17 | L82: 53 | M82: 16 | N82: 50 | O82: 64 | P82: 14 | Q82: 2 | R82: 44 | S82: 10 | T82: 31 | U82: 10 | V82: 47 | W82: 10 | X82: 112 | Y82: 21 | Z82: 27 | AA82: 19 | AB82: 6 | AC82: 73 | AD82: 28 | AE82: 78 | AF82: 34 | AG82: 33 | AH82: 34 | AI82: 39 | AJ82: 21 | AK82: 18 | AL82: =SUM(B82:AK82) -> 1280 | AM82: =AVERAGE(B82:AK82) -> 35.55555556 | AN82: =IF(AM82>=20,TRUE()) -> 1
A83: AAATTCGTATCTAGGGGAAT_ssc-miR-10a-3p | B83: 0 | C83: 33 | D83: 8 | E83: 10 | F83: 11 | G83: 16 | H83: 35 | I83: 2 | J83: 7 | K83: 5 | L83: 31 | M83: 17 | N83: 9 | O83: 8 | P83: 7 | Q83: 4 | R83: 15 | S83: 5 | T83: 1 | U83: 20 | V83: 3 | W83: 6 | X83: 3 | Y83: 9 | Z83: 16 | AA83: 13 | AB83: 1 | AC83: 2 | AD83: 12 | AE83: 15 | AF83: 17 | AG83: 7 | AH83: 46 | AI83: 16 | AJ83: 8 | AK83: 14 | AL83: =SUM(B83:AK83) -> 432 | AM83: =AVERAGE(B83:AK83) -> 12 | AN83: =IF(AM83>=20,TRUE()) -> 0
A84: AACACTGTCTGGTAAC_bta-miR-200a | B84: 10 | C84: 30 | D84: 16 | E84: 161 | F84: 92 | G84: 70 | H84: 290 | I84: 27 | J84: 63 | K84: 247 | L84: 205 | M84: 33 | N84: 109 | O84: 122 | P84: 285 | Q84: 302 | R84: 206 | S84: 156 | T84: 34 | U84: 28 | V84: 66 | W84: 15 | X84: 108 | Y84: 37 | Z84: 278 | AA84: 369 | AB84: 60 | AC84: 99 | AD84: 64 | AE84: 125 | AF84: 68 | AG84: 260 | AH84: 38 | AI84: 17 | AJ84: 324 | AK84: 70 | AL84: =SUM(B84:AK84) -> 4484 | AM84: =AVERAGE(B84:AK84) -> 124.5555556 | AN84: =IF(AM84>=20,TRUE()) -> 1
A85: AACACTGTCTGGTAACG_bta-miR-200a | B85: 2 | C85: 13 | D85: 6 | E85: 25 | F85: 23 | G85: 16 | H85: 38 | I85: 9 | J85: 11 | K85: 38 | L85: 45 | M85: 15 | N85: 19 | O85: 21 | P85: 56 | Q85: 44 | R85: 21 | S85: 38 | T85: 4 | U85: 31 | V85: 5 | W85: 3 | X85: 22 | Y85: 7 | Z85: 42 | AA85: 39 | AB85: 3 | AC85: 18 | AD85: 15 | AE85: 33 | AF85: 16 | AG85: 40 | AH85: 19 | AI85: 5 | AJ85: 46 | AK85: 17 | AL85: =SUM(B85:AK85) -> 805 | AM85: =AVERAGE(B85:AK85) -> 22.36111111 | AN85: =IF(AM85>=20,TRUE()) -> 1
A86: AACACTGTCTGGTAACGAT_bta-miR-200a | B86: 3 | C86: 12 | D86: 9 | E86: 31 | F86: 15 | G86: 26 | H86: 65 | I86: 8 | J86: 15 | K86: 24 | L86: 50 | M86: 48 | N86: 20 | O86: 24 | P86: 26 | Q86: 18 | R86: 28 | S86: 28 | T86: 7 | U86: 24 | V86: 9 | W86: 12 | X86: 27 | Y86: 18 | Z86: 62 | AA86: 30 | AB86: 13 | AC86: 12 | AD86: 13 | AE86: 33 | AF86: 47 | AG86: 40 | AH86: 62 | AI86: 16 | AJ86: 26 | AK86: 33 | AL86: =SUM(B86:AK86) -> 934 | AM86: =AVERAGE(B86:AK86) -> 25.94444444 | AN86: =IF(AM86>=20,TRUE()) -> 1
A87: AACACTGTCTGGTAACGATG_bta-miR-200a | B87: 31 | C87: 204 | D87: 72 | E87: 67 | F87: 120 | G87: 128 | H87: 234 | I87: 56 | J87: 64 | K87: 123 | L87: 252 | M87: 364 | N87: 104 | O87: 142 | P87: 151 | Q87: 119 | R87: 155 | S87: 146 | T87: 16 | U87: 172 | V87: 32 | W87: 82 | X87: 76 | Y87: 90 | Z87: 275 | AA87: 175 | AB87: 43 | AC87: 38 | AD87: 64 | AE87: 132 | AF87: 120 | AG87: 167 | AH87: 294 | AI87: 62 | AJ87: 121 | AK87: 91 | AL87: =SUM(B87:AK87) -> 4582 | AM87: =AVERAGE(B87:AK87) -> 127.2777778 | AN87: =IF(AM87>=20,TRUE()) -> 1
A88: AACACTGTCTGGTAACGATGA_bta-miR-200a | B88: 5 | C88: 13 | D88: 4 | E88: 6 | F88: 7 | G88: 29 | H88: 29 | I88: 4 | J88: 9 | K88: 3 | L88: 23 | M88: 24 | N88: 8 | O88: 8 | P88: 3 | Q88: 3 | R88: 14 | S88: 2 | T88: 1 | U88: 14 | V88: 3 | W88: 10 | X88: 8 | Y88: 14 | Z88: 9 | AA88: 3 | AB88: 1 | AC88: 6 | AD88: 6 | AE88: 14 | AF88: 14 | AG88: 6 | AH88: 70 | AI88: 9 | AJ88: 3 | AK88: 7 | AL88: =SUM(B88:AK88) -> 392 | AM88: =AVERAGE(B88:AK88) -> 10.88888889 | AN88: =IF(AM88>=20,TRUE()) -> 0
A89: AACACTGTCTGGTAACGATGAT_hsa-miR-200a-3p | B89: 5 | C89: 30 | D89: 11 | E89: 0 | F89: 36 | G89: 61 | H89: 44 | I89: 14 | J89: 12 | K89: 0 | L89: 46 | M89: 84 | N89: 1 | O89: 17 | P89: 35 | Q89: 0 | R89: 0 | S89: 1 | T89: 0 | U89: 34 | V89: 7 | W89: 18 | X89: 2 | Y89: 23 | Z89: 0 | AA89: 0 | AB89: 0 | AC89: 0 | AD89: 0 | AE89: 33 | AF89: 2 | AG89: 1 | AH89: 108 | AI89: 0 | AJ89: 0 | AK89: 0 | AL89: =SUM(B89:AK89) -> 625 | AM89: =AVERAGE(B89:AK89) -> 17.36111111 | AN89: =IF(AM89>=20,TRUE()) -> 0
A90: AACACTGTCTGGTAACGATGC_bta-miR-200a | B90: 11 | C90: 92 | D90: 30 | E90: 99 | F90: 62 | G90: 172 | H90: 237 | I90: 55 | J90: 67 | K90: 41 | L90: 163 | M90: 120 | N90: 89 | O90: 86 | P90: 41 | Q90: 50 | R90: 106 | S90: 44 | T90: 10 | U90: 96 | V90: 38 | W90: 47 | X90: 104 | Y90: 84 | Z90: 100 | AA90: 50 | AB90: 15 | AC90: 59 | AD90: 70 | AE90: 125 | AF90: 108 | AG90: 97 | AH90: 317 | AI90: 59 | AJ90: 40 | AK90: 99 | AL90: =SUM(B90:AK90) -> 3083 | AM90: =AVERAGE(B90:AK90) -> 85.63888889 | AN90: =IF(AM90>=20,TRUE()) -> 1
A91: AACACTGTCTGGTAACGATGCT_hsa-miR-200a-3p | B91: 10 | C91: 25 | D91: 6 | E91: 7 | F91: 18 | G91: 59 | H91: 28 | I91: 12 | J91: 13 | K91: 2 | L91: 37 | M91: 65 | N91: 1 | O91: 22 | P91: 19 | Q91: 4 | R91: 3 | S91: 2 | T91: 2 | U91: 38 | V91: 2 | W91: 26 | X91: 14 | Y91: 15 | Z91: 4 | AA91: 5 | AB91: 4 | AC91: 5 | AD91: 6 | AE91: 21 | AF91: 5 | AG91: 11 | AH91: 86 | AI91: 4 | AJ91: 3 | AK91: 1 | AL91: =SUM(B91:AK91) -> 585 | AM91: =AVERAGE(B91:AK91) -> 16.25 | AN91: =IF(AM91>=20,TRUE()) -> 0
A92: AACACTGTCTGGTAACGATGT_bta-miR-200a | B92: 68 | C92: 440 | D92: 149 | E92: 264 | F92: 344 | G92: 714 | H92: 764 | I92: 205 | J92: 218 | K92: 215 | L92: 746 | M92: 776 | N92: 264 | O92: 371 | P92: 278 | Q92: 239 | R92: 339 | S92: 262 | T92: 42 | U92: 546 | V92: 101 | W92: 247 | X92: 323 | Y92: 307 | Z92: 534 | AA92: 266 | AB92: 98 | AC92: 146 | AD92: 263 | AE92: 423 | AF92: 394 | AG92: 446 | AH92: 1126 | AI92: 271 | AJ92: 229 | AK92: 332 | AL92: =SUM(B92:AK92) -> 12750 | AM92: =AVERAGE(B92:AK92) -> 354.1666667 | AN92: =IF(AM92>=20,TRUE()) -> 1
A93: AACACTGTCTGGTAACGATGTA_bta-miR-200a | B93: 5 | C93: 41 | D93: 8 | E93: 39 | F93: 24 | G93: 84 | H93: 54 | I93: 45 | J93: 26 | K93: 8 | L93: 41 | M93: 73 | N93: 30 | O93: 28 | P93: 8 | Q93: 22 | R93: 55 | S93: 15 | T93: 0 | U93: 26 | V93: 13 | W93: 15 | X93: 47 | Y93: 24 | Z93: 22 | AA93: 10 | AB93: 6 | AC93: 34 | AD93: 33 | AE93: 58 | AF93: 29 | AG93: 32 | AH93: 201 | AI93: 46 | AJ93: 10 | AK93: 14 | AL93: =SUM(B93:AK93) -> 1226 | AM93: =AVERAGE(B93:AK93) -> 34.05555556 | AN93: =IF(AM93>=20,TRUE()) -> 1
A94: AACACTGTCTGGTAACGATGTC_bta-miR-200a | B94: 43 | C94: 252 | D94: 84 | E94: 405 | F94: 199 | G94: 850 | H94: 625 | I94: 306 | J94: 292 | K94: 125 | L94: 537 | M94: 583 | N94: 285 | O94: 380 | P94: 199 | Q94: 217 | R94: 434 | S94: 189 | T94: 33 | U94: 269 | V94: 116 | W94: 134 | X94: 433 | Y94: 359 | Z94: 235 | AA94: 176 | AB94: 64 | AC94: 295 | AD94: 290 | AE94: 494 | AF94: 318 | AG94: 484 | AH94: 1405 | AI94: 265 | AJ94: 153 | AK94: 206 | AL94: =SUM(B94:AK94) -> 11734 | AM94: =AVERAGE(B94:AK94) -> 325.9444444 | AN94: =IF(AM94>=20,TRUE()) -> 1
A95: AACACTGTCTGGTAACGATGTG_bta-miR-200a | B95: 4 | C95: 35 | D95: 9 | E95: 12 | F95: 12 | G95: 49 | H95: 19 | I95: 16 | J95: 67 | K95: 6 | L95: 18 | M95: 28 | N95: 9 | O95: 120 | P95: 8 | Q95: 5 | R95: 133 | S95: 3 | T95: 2 | U95: 11 | V95: 33 | W95: 9 | X95: 19 | Y95: 12 | Z95: 24 | AA95: 5 | AB95: 1 | AC95: 15 | AD95: 13 | AE95: 22 | AF95: 14 | AG95: 20 | AH95: 62 | AI95: 14 | AJ95: 5 | AK95: 21 | AL95: =SUM(B95:AK95) -> 855 | AM95: =AVERAGE(B95:AK95) -> 23.75 | AN95: =IF(AM95>=20,TRUE()) -> 1
A96: AACACTGTCTGGTAACGATGTT_bta-miR-200a | B96: 422 | C96: 2131 | D96: 807 | E96: 1253 | F96: 1843 | G96: 3590 | H96: 2063 | I96: 1156 | J96: 1127 | K96: 992 | L96: 3315 | M96: 5657 | N96: 964 | O96: 1435 | P96: 1873 | Q96: 1577 | R96: 1455 | S96: 1154 | T96: 225 | U96: 2647 | V96: 422 | W96: 1285 | X96: 1496 | Y96: 1475 | Z96: 1540 | AA96: 1074 | AB96: 535 | AC96: 924 | AD96: 917 | AE96: 1916 | AF96: 1100 | AG96: 2474 | AH96: 5714 | AI96: 1083 | AJ96: 1104 | AK96: 872 | AL96: =SUM(B96:AK96) -> 59617 | AM96: =AVERAGE(B96:AK96) -> 1656.027778 | AN96: =IF(AM96>=20,TRUE()) -> 1
A97: AACACTGTCTGGTAACGATGTTA_bta-miR-200a | B97: 7 | C97: 24 | D97: 12 | E97: 11 | F97: 27 | G97: 31 | H97: 8 | I97: 9 | J97: 4 | K97: 15 | L97: 32 | M97: 81 | N97: 8 | O97: 13 | P97: 27 | Q97: 11 | R97: 4 | S97: 11 | T97: 4 | U97: 32 | V97: 5 | W97: 16 | X97: 9 | Y97: 14 | Z97: 14 | AA97: 20 | AB97: 3 | AC97: 8 | AD97: 9 | AE97: 28 | AF97: 12 | AG97: 29 | AH97: 67 | AI97: 6 | AJ97: 17 | AK97: 6 | AL97: =SUM(B97:AK97) -> 634 | AM97: =AVERAGE(B97:AK97) -> 17.61111111 | AN97: =IF(AM97>=20,TRUE()) -> 0
A98: AACACTGTCTGGTAACGATGTTT_bta-miR-200a | B98: 1 | C98: 37 | D98: 12 | E98: 13 | F98: 29 | G98: 50 | H98: 51 | I98: 20 | J98: 10 | K98: 8 | L98: 43 | M98: 36 | N98: 11 | O98: 17 | P98: 22 | Q98: 15 | R98: 17 | S98: 19 | T98: 1 | U98: 26 | V98: 6 | W98: 28 | X98: 14 | Y98: 30 | Z98: 29 | AA98: 15 | AB98: 5 | AC98: 5 | AD98: 12 | AE98: 33 | AF98: 25 | AG98: 32 | AH98: 71 | AI98: 19 | AJ98: 10 | AK98: 23 | AL98: =SUM(B98:AK98) -> 795 | AM98: =AVERAGE(B98:AK98) -> 22.08333333 | AN98: =IF(AM98>=20,TRUE()) -> 1
A99: AACATAGCGAGACCCCGTCTCT_ssc-mir-1285 | B99: 15 | C99: 13 | D99: 10 | E99: 17 | F99: 27 | G99: 28 | H99: 17 | I99: 16 | J99: 13 | K99: 3 | L99: 17 | M99: 2 | N99: 5 | O99: 12 | P99: 9 | Q99: 6 | R99: 5 | S99: 22 | T99: 6 | U99: 11 | V99: 19 | W99: 15 | X99: 17 | Y99: 1 | Z99: 13 | AA99: 0 | AB99: 5 | AC99: 14 | AD99: 5 | AE99: 15 | AF99: 7 | AG99: 10 | AH99: 34 | AI99: 5 | AJ99: 15 | AK99: 12 | AL99: =SUM(B99:AK99) -> 441 | AM99: =AVERAGE(B99:AK99) -> 12.25 | AN99: =IF(AM99>=20,TRUE()) -> 0
A100: AACATAGCGAGACCCCGTCTCTT_ssc-mir-1285 | B100: 41 | C100: 14 | D100: 25 | E100: 23 | F100: 51 | G100: 69 | H100: 27 | I100: 45 | J100: 35 | K100: 0 | L100: 38 | M100: 12 | N100: 11 | O100: 32 | P100: 29 | Q100: 20 | R100: 19 | S100: 42 | T100: 39 | U100: 39 | V100: 58 | W100: 23 | X100: 49 | Y100: 3 | Z100: 30 | AA100: 1 | AB100: 9 | AC100: 40 | AD100: 23 | AE100: 53 | AF100: 31 | AG100: 24 | AH100: 55 | AI100: 22 | AJ100: 16 | AK100: 31 | AL100: =SUM(B100:AK100) -> 1079 | AM100: =AVERAGE(B100:AK100) -> 29.97222222 | AN100: =IF(AM100>=20,TRUE()) -> 1
A101: AACATTCAACGCTGTCGGT_ssc-miR-181a | B101: 2 | C101: 7 | D101: 12 | E101: 28 | F101: 4 | G101: 1 | H101: 19 | I101: 2 | J101: 0 | K101: 9 | L101: 31 | M101: 28 | N101: 9 | O101: 4 | P101: 5 | Q101: 2 | R101: 6 | S101: 24 | T101: 0 | U101: 5 | V101: 6 | W101: 2 | X101: 2 | Y101: 2 | Z101: 14 | AA101: 3 | AB101: 0 | AC101: 1 | AD101: 9 | AE101: 18 | AF101: 13 | AG101: 2 | AH101: 27 | AI101: 6 | AJ101: 12 | AK101: 41 | AL101: =SUM(B101:AK101) -> 356 | AM101: =AVERAGE(B101:AK101) -> 9.888888889 | AN101: =IF(AM101>=20,TRUE()) -> 0
A102: AACATTCAACGCTGTCGGTG_ssc-miR-181a | B102: 2 | C102: 62 | D102: 11 | E102: 6 | F102: 5 | G102: 9 | H102: 23 | I102: 0 | J102: 2 | K102: 6 | L102: 30 | M102: 33 | N102: 6 | O102: 14 | P102: 13 | Q102: 6 | R102: 13 | S102: 9 | T102: 8 | U102: 14 | V102: 3 | W102: 6 | X102: 4 | Y102: 12 | Z102: 33 | AA102: 11 | AB102: 3 | AC102: 4 | AD102: 12 | AE102: 8 | AF102: 16 | AG102: 7 | AH102: 27 | AI102: 16 | AJ102: 7 | AK102: 19 | AL102: =SUM(B102:AK102) -> 460 | AM102: =AVERAGE(B102:AK102) -> 12.77777778 | AN102: =IF(AM102>=20,TRUE()) -> 0
A103: AACATTCAACGCTGTCGGTGA_ssc-miR-181a | B103: 6 | C103: 118 | D103: 11 | E103: 5 | F103: 22 | G103: 16 | H103: 54 | I103: 11 | J103: 9 | K103: 28 | L103: 63 | M103: 51 | N103: 12 | O103: 18 | P103: 12 | Q103: 9 | R103: 24 | S103: 29 | T103: 1 | U103: 26 | V103: 5 | W103: 14 | X103: 3 | Y103: 12 | Z103: 43 | AA103: 24 | AB103: 1 | AC103: 5 | AD103: 23 | AE103: 35 | AF103: 15 | AG103: 27 | AH103: 64 | AI103: 19 | AJ103: 15 | AK103: 37 | AL103: =SUM(B103:AK103) -> 867 | AM103: =AVERAGE(B103:AK103) -> 24.08333333 | AN103: =IF(AM103>=20,TRUE()) -> 1
A104: AACATTCAACGCTGTCGGTGAG_ssc-miR-181a | B104: 2 | C104: 131 | D104: 8 | E104: 6 | F104: 29 | G104: 13 | H104: 26 | I104: 4 | J104: 13 | K104: 15 | L104: 37 | M104: 35 | N104: 12 | O104: 14 | P104: 5 | Q104: 0 | R104: 8 | S104: 13 | T104: 2 | U104: 27 | V104: 2 | W104: 13 | X104: 4 | Y104: 8 | Z104: 26 | AA104: 5 | AB104: 2 | AC104: 4 | AD104: 12 | AE104: 15 | AF104: 10 | AG104: 9 | AH104: 54 | AI104: 13 | AJ104: 7 | AK104: 18 | AL104: =SUM(B104:AK104) -> 602 | AM104: =AVERAGE(B104:AK104) -> 16.72222222 | AN104: =IF(AM104>=20,TRUE()) -> 0
A105: AACATTCAACGCTGTCGGTGAGA_ssc-miR-181a | B105: 2 | C105: 79 | D105: 8 | E105: 9 | F105: 11 | G105: 12 | H105: 32 | I105: 11 | J105: 3 | K105: 16 | L105: 29 | M105: 27 | N105: 11 | O105: 11 | P105: 6 | Q105: 1 | R105: 10 | S105: 9 | T105: 1 | U105: 23 | V105: 2 | W105: 6 | X105: 5 | Y105: 5 | Z105: 32 | AA105: 16 | AB105: 3 | AC105: 1 | AD105: 10 | AE105: 16 | AF105: 10 | AG105: 15 | AH105: 49 | AI105: 11 | AJ105: 4 | AK105: 18 | AL105: =SUM(B105:AK105) -> 514 | AM105: =AVERAGE(B105:AK105) -> 14.27777778 | AN105: =IF(AM105>=20,TRUE()) -> 0
A106: AACATTCAACGCTGTCGGTGAGC_ssc-miR-181a | B106: 2 | C106: 82 | D106: 12 | E106: 12 | F106: 16 | G106: 22 | H106: 65 | I106: 17 | J106: 11 | K106: 9 | L106: 47 | M106: 17 | N106: 25 | O106: 28 | P106: 6 | Q106: 3 | R106: 25 | S106: 18 | T106: 4 | U106: 9 | V106: 10 | W106: 7 | X106: 17 | Y106: 20 | Z106: 18 | AA106: 13 | AB106: 0 | AC106: 14 | AD106: 13 | AE106: 30 | AF106: 23 | AG106: 20 | AH106: 91 | AI106: 20 | AJ106: 14 | AK106: 29 | AL106: =SUM(B106:AK106) -> 769 | AM106: =AVERAGE(B106:AK106) -> 21.36111111 | AN106: =IF(AM106>=20,TRUE()) -> 1
A107: AACATTCAACGCTGTCGGTGAGT_ssc-miR-181a | B107: 6 | C107: 661 | D107: 48 | E107: 56 | F107: 91 | G107: 91 | H107: 238 | I107: 60 | J107: 28 | K107: 60 | L107: 229 | M107: 218 | N107: 76 | O107: 109 | P107: 48 | Q107: 19 | R107: 122 | S107: 58 | T107: 15 | U107: 92 | V107: 23 | W107: 39 | X107: 54 | Y107: 71 | Z107: 175 | AA107: 103 | AB107: 23 | AC107: 31 | AD107: 69 | AE107: 116 | AF107: 94 | AG107: 69 | AH107: 377 | AI107: 109 | AJ107: 55 | AK107: 175 | AL107: =SUM(B107:AK107) -> 3908 | AM107: =AVERAGE(B107:AK107) -> 108.5555556 | AN107: =IF(AM107>=20,TRUE()) -> 1
A108: AACATTCATTGCTGTCGGTGGGT_ssc-miR-181b | B108: 3 | C108: 62 | D108: 8 | E108: 9 | F108: 12 | G108: 16 | H108: 37 | I108: 7 | J108: 8 | K108: 2 | L108: 14 | M108: 22 | N108: 9 | O108: 15 | P108: 5 | Q108: 5 | R108: 12 | S108: 6 | T108: 6 | U108: 10 | V108: 4 | W108: 5 | X108: 3 | Y108: 8 | Z108: 15 | AA108: 5 | AB108: 2 | AC108: 3 | AD108: 10 | AE108: 12 | AF108: 11 | AG108: 12 | AH108: 69 | AI108: 5 | AJ108: 4 | AK108: 25 | AL108: =SUM(B108:AK108) -> 461 | AM108: =AVERAGE(B108:AK108) -> 12.80555556 | AN108: =IF(AM108>=20,TRUE()) -> 0
A109: AACATTCATTGTTGTCGGTGGGT_ssc-miR-181d-5p | B109: 1 | C109: 31 | D109: 6 | E109: 5 | F109: 4 | G109: 9 | H109: 23 | I109: 16 | J109: 8 | K109: 4 | L109: 25 | M109: 29 | N109: 8 | O109: 11 | P109: 6 | Q109: 2 | R109: 5 | S109: 3 | T109: 0 | U109: 23 | V109: 1 | W109: 4 | X109: 6 | Y109: 3 | Z109: 22 | AA109: 6 | AB109: 2 | AC109: 4 | AD109: 10 | AE109: 17 | AF109: 5 | AG109: 3 | AH109: 61 | AI109: 10 | AJ109: 5 | AK109: 6 | AL109: =SUM(B109:AK109) -> 384 | AM109: =AVERAGE(B109:AK109) -> 10.66666667 | AN109: =IF(AM109>=20,TRUE()) -> 0
A110: AACATTCATTGTTGTCGGTGGGTT_ssc-miR-181d-5p | B110: 1 | C110: 17 | D110: 7 | E110: 11 | F110: 2 | G110: 2 | H110: 45 | I110: 11 | J110: 8 | K110: 8 | L110: 17 | M110: 17 | N110: 7 | O110: 8 | P110: 2 | Q110: 4 | R110: 13 | S110: 2 | T110: 1 | U110: 16 | V110: 1 | W110: 2 | X110: 0 | Y110: 2 | Z110: 28 | AA110: 11 | AB110: 2 | AC110: 2 | AD110: 11 | AE110: 15 | AF110: 5 | AG110: 7 | AH110: 38 | AI110: 9 | AJ110: 4 | AK110: 8 | AL110: =SUM(B110:AK110) -> 344 | AM110: =AVERAGE(B110:AK110) -> 9.555555556 | AN110: =IF(AM110>=20,TRUE()) -> 0
A111: AACCCGTAGATCCGAACTTG_ssc-miR-100 | B111: 1 | C111: 24 | D111: 8 | E111: 7 | F111: 12 | G111: 5 | H111: 58 | I111: 8 | J111: 6 | K111: 10 | L111: 18 | M111: 23 | N111: 8 | O111: 20 | P111: 6 | Q111: 5 | R111: 24 | S111: 13 | T111: 1 | U111: 12 | V111: 6 | W111: 7 | X111: 8 | Y111: 7 | Z111: 51 | AA111: 30 | AB111: 0 | AC111: 2 | AD111: 0 | AE111: 12 | AF111: 22 | AG111: 7 | AH111: 20 | AI111: 6 | AJ111: 15 | AK111: 10 | AL111: =SUM(B111:AK111) -> 472 | AM111: =AVERAGE(B111:AK111) -> 13.11111111 | AN111: =IF(AM111>=20,TRUE()) -> 0
A112: AACCCGTAGATCCGAACTTGT_ssc-miR-100 | B112: 2 | C112: 25 | D112: 9 | E112: 9 | F112: 30 | G112: 20 | H112: 114 | I112: 17 | J112: 16 | K112: 11 | L112: 30 | M112: 17 | N112: 17 | O112: 21 | P112: 8 | Q112: 3 | R112: 19 | S112: 15 | T112: 5 | U112: 22 | V112: 1 | W112: 12 | X112: 23 | Y112: 20 | Z112: 48 | AA112: 39 | AB112: 1 | AC112: 9 | AD112: 11 | AE112: 23 | AF112: 26 | AG112: 5 | AH112: 53 | AI112: 9 | AJ112: 12 | AK112: 36 | AL112: =SUM(B112:AK112) -> 738 | AM112: =AVERAGE(B112:AK112) -> 20.5 | AN112: =IF(AM112>=20,TRUE()) -> 1
A113: AACCCGTAGATCCGAACTTGTG_ssc-miR-100 | B113: 6 | C113: 52 | D113: 17 | E113: 42 | F113: 34 | G113: 39 | H113: 292 | I113: 25 | J113: 27 | K113: 67 | L113: 67 | M113: 53 | N113: 54 | O113: 57 | P113: 28 | Q113: 37 | R113: 78 | S113: 64 | T113: 7 | U113: 38 | V113: 11 | W113: 24 | X113: 19 | Y113: 27 | Z113: 225 | AA113: 141 | AB113: 17 | AC113: 13 | AD113: 32 | AE113: 60 | AF113: 66 | AG113: 34 | AH113: 80 | AI113: 15 | AJ113: 53 | AK113: 56 | AL113: =SUM(B113:AK113) -> 1957 | AM113: =AVERAGE(B113:AK113) -> 54.36111111 | AN113: =IF(AM113>=20,TRUE()) -> 1
A114: AACCCGTAGATCCGATCT_ssc-miR-99a | B114: 0 | C114: 8 | D114: 5 | E114: 23 | F114: 9 | G114: 7 | H114: 44 | I114: 3 | J114: 6 | K114: 5 | L114: 25 | M114: 20 | N114: 22 | O114: 7 | P114: 3 | Q114: 3 | R114: 16 | S114: 67 | T114: 0 | U114: 14 | V114: 5 | W114: 4 | X114: 11 | Y114: 15 | Z114: 37 | AA114: 16 | AB114: 4 | AC114: 5 | AD114: 12 | AE114: 18 | AF114: 55 | AG114: 5 | AH114: 17 | AI114: 9 | AJ114: 35 | AK114: 93 | AL114: =SUM(B114:AK114) -> 628 | AM114: =AVERAGE(B114:AK114) -> 17.44444444 | AN114: =IF(AM114>=20,TRUE()) -> 0
A115: AACCCGTAGATCCGATCTT_ssc-miR-99a | B115: 2 | C115: 23 | D115: 23 | E115: 33 | F115: 9 | G115: 15 | H115: 106 | I115: 11 | J115: 9 | K115: 11 | L115: 33 | M115: 55 | N115: 16 | O115: 20 | P115: 16 | Q115: 8 | R115: 18 | S115: 30 | T115: 7 | U115: 22 | V115: 3 | W115: 9 | X115: 6 | Y115: 7 | Z115: 37 | AA115: 19 | AB115: 4 | AC115: 11 | AD115: 16 | AE115: 32 | AF115: 28 | AG115: 17 | AH115: 45 | AI115: 8 | AJ115: 14 | AK115: 38 | AL115: =SUM(B115:AK115) -> 761 | AM115: =AVERAGE(B115:AK115) -> 21.13888889 | AN115: =IF(AM115>=20,TRUE()) -> 1
A116: AACCCGTAGATCCGATCTTG_ssc-miR-99a | B116: 19 | C116: 262 | D116: 56 | E116: 125 | F116: 114 | G116: 61 | H116: 715 | I116: 98 | J116: 110 | K116: 120 | L116: 318 | M116: 293 | N116: 68 | O116: 119 | P116: 106 | Q116: 61 | R116: 176 | S116: 122 | T116: 25 | U116: 161 | V116: 37 | W116: 68 | X116: 42 | Y116: 64 | Z116: 557 | AA116: 239 | AB116: 25 | AC116: 74 | AD116: 97 | AE116: 152 | AF116: 121 | AG116: 87 | AH116: 320 | AI116: 91 | AJ116: 77 | AK116: 111 | AL116: =SUM(B116:AK116) -> 5291 | AM116: =AVERAGE(B116:AK116) -> 146.9722222 | AN116: =IF(AM116>=20,TRUE()) -> 1
A117: AACCCGTAGATCCGATCTTGA_ssc-miR-99a | B117: 0 | C117: 50 | D117: 15 | E117: 47 | F117: 12 | G117: 34 | H117: 365 | I117: 47 | J117: 34 | K117: 13 | L117: 47 | M117: 32 | N117: 42 | O117: 48 | P117: 4 | Q117: 8 | R117: 79 | S117: 16 | T117: 1 | U117: 18 | V117: 10 | W117: 2 | X117: 29 | Y117: 33 | Z117: 116 | AA117: 23 | AB117: 1 | AC117: 26 | AD117: 44 | AE117: 61 | AF117: 64 | AG117: 22 | AH117: 143 | AI117: 50 | AJ117: 6 | AK117: 66 | AL117: =SUM(B117:AK117) -> 1608 | AM117: =AVERAGE(B117:AK117) -> 44.66666667 | AN117: =IF(AM117>=20,TRUE()) -> 1
A118: AACCCGTAGATCCGATCTTGC_ssc-miR-99a | B118: 28 | C118: 360 | D118: 99 | E118: 579 | F118: 109 | G118: 175 | H118: 3547 | I118: 348 | J118: 269 | K118: 176 | L118: 669 | M118: 306 | N118: 407 | O118: 395 | P118: 165 | Q118: 101 | R118: 692 | S118: 176 | T118: 32 | U118: 206 | V118: 171 | W118: 65 | X118: 241 | Y118: 188 | Z118: 1192 | AA118: 463 | AB118: 57 | AC118: 206 | AD118: 345 | AE118: 616 | AF118: 595 | AG118: 286 | AH118: 1049 | AI118: 342 | AJ118: 200 | AK118: 560 | AL118: =SUM(B118:AK118) -> 15415 | AM118: =AVERAGE(B118:AK118) -> 428.1944444 | AN118: =IF(AM118>=20,TRUE()) -> 1
A119: AACCCGTAGATCCGATCTTGG_ssc-miR-99a | B119: 1 | C119: 52 | D119: 11 | E119: 25 | F119: 7 | G119: 9 | H119: 140 | I119: 7 | J119: 119 | K119: 13 | L119: 28 | M119: 27 | N119: 35 | O119: 206 | P119: 12 | Q119: 2 | R119: 315 | S119: 8 | T119: 2 | U119: 11 | V119: 65 | W119: 5 | X119: 12 | Y119: 13 | Z119: 118 | AA119: 21 | AB119: 4 | AC119: 12 | AD119: 17 | AE119: 40 | AF119: 26 | AG119: 9 | AH119: 59 | AI119: 16 | AJ119: 5 | AK119: 44 | AL119: =SUM(B119:AK119) -> 1496 | AM119: =AVERAGE(B119:AK119) -> 41.55555556 | AN119: =IF(AM119>=20,TRUE()) -> 1
A120: AACCCGTAGATCCGATCTTGT_ssc-miR-99a | B120: 143 | C120: 2875 | D120: 561 | E120: 1575 | F120: 885 | G120: 703 | H120: 12133 | I120: 1276 | J120: 1168 | K120: 1197 | L120: 3430 | M120: 2510 | N120: 1427 | O120: 1604 | P120: 992 | Q120: 684 | R120: 2301 | S120: 1078 | T120: 159 | U120: 1582 | V120: 531 | W120: 382 | X120: 780 | Y120: 853 | Z120: 6434 | AA120: 2613 | AB120: 326 | AC120: 814 | AD120: 1298 | AE120: 2289 | AF120: 2107 | AG120: 1168 | AH120: 4042 | AI120: 1261 | AJ120: 902 | AK120: 2186 | AL120: =SUM(B120:AK120) -> 66269 | AM120: =AVERAGE(B120:AK120) -> 1840.805556 | AN120: =IF(AM120>=20,TRUE()) -> 1
A121: AACCCGTAGATCCGATCTTGTA_ssc-miR-99a | B121: 7 | C121: 98 | D121: 13 | E121: 48 | F121: 13 | G121: 25 | H121: 222 | I121: 46 | J121: 20 | K121: 23 | L121: 65 | M121: 107 | N121: 32 | O121: 32 | P121: 25 | Q121: 13 | R121: 34 | S121: 13 | T121: 3 | U121: 59 | V121: 11 | W121: 15 | X121: 11 | Y121: 20 | Z121: 112 | AA121: 38 | AB121: 8 | AC121: 23 | AD121: 36 | AE121: 54 | AF121: 34 | AG121: 27 | AH121: 193 | AI121: 38 | AJ121: 19 | AK121: 36 | AL121: =SUM(B121:AK121) -> 1573 | AM121: =AVERAGE(B121:AK121) -> 43.69444444 | AN121: =IF(AM121>=20,TRUE()) -> 1
A122: AACCCGTAGATCCGATCTTGTAA_ssc-miR-99a | B122: 0 | C122: 38 | D122: 7 | E122: 16 | F122: 9 | G122: 4 | H122: 74 | I122: 9 | J122: 10 | K122: 15 | L122: 28 | M122: 32 | N122: 4 | O122: 15 | P122: 14 | Q122: 8 | R122: 12 | S122: 7 | T122: 0 | U122: 15 | V122: 7 | W122: 6 | X122: 1 | Y122: 8 | Z122: 55 | AA122: 28 | AB122: 3 | AC122: 3 | AD122: 13 | AE122: 11 | AF122: 4 | AG122: 7 | AH122: 37 | AI122: 12 | AJ122: 8 | AK122: 6 | AL122: =SUM(B122:AK122) -> 526 | AM122: =AVERAGE(B122:AK122) -> 14.61111111 | AN122: =IF(AM122>=20,TRUE()) -> 0
A123: AACCCGTAGATCCGATCTTGTG_ssc-miR-99a | B123: 59 | C123: 1070 | D123: 201 | E123: 251 | F123: 370 | G123: 213 | H123: 1805 | I123: 347 | J123: 345 | K123: 351 | L123: 1127 | M123: 1174 | N123: 180 | O123: 323 | P123: 231 | Q123: 157 | R123: 399 | S123: 226 | T123: 41 | U123: 770 | V123: 130 | W123: 195 | X123: 124 | Y123: 194 | Z123: 1569 | AA123: 602 | AB123: 111 | AC123: 117 | AD123: 316 | AE123: 500 | AF123: 288 | AG123: 304 | AH123: 1294 | AI123: 281 | AJ123: 174 | AK123: 306 | AL123: =SUM(B123:AK123) -> 16145 | AM123: =AVERAGE(B123:AK123) -> 448.4722222 | AN123: =IF(AM123>=20,TRUE()) -> 1
A124: AACCCGTAGATCCGATCTTGTGA_ssc-miR-99a | B124: 79 | C124: 2425 | D124: 376 | E124: 600 | F124: 479 | G124: 298 | H124: 3612 | I124: 641 | J124: 535 | K124: 652 | L124: 1760 | M124: 2284 | N124: 348 | O124: 518 | P124: 566 | Q124: 383 | R124: 655 | S124: 309 | T124: 68 | U124: 1137 | V124: 201 | W124: 236 | X124: 227 | Y124: 263 | Z124: 3053 | AA124: 1186 | AB124: 201 | AC124: 296 | AD124: 654 | AE124: 887 | AF124: 520 | AG124: 546 | AH124: 1818 | AI124: 491 | AJ124: 308 | AK124: 550 | AL124: =SUM(B124:AK124) -> 29162 | AM124: =AVERAGE(B124:AK124) -> 810.0555556 | AN124: =IF(AM124>=20,TRUE()) -> 1
A125: AACCCGTAGATCCGATCTTGTGAA_ssc-miR-99a | B125: 1 | C125: 93 | D125: 10 | E125: 22 | F125: 21 | G125: 11 | H125: 135 | I125: 14 | J125: 15 | K125: 26 | L125: 48 | M125: 56 | N125: 19 | O125: 25 | P125: 23 | Q125: 15 | R125: 38 | S125: 8 | T125: 6 | U125: 33 | V125: 14 | W125: 5 | X125: 6 | Y125: 8 | Z125: 100 | AA125: 44 | AB125: 6 | AC125: 4 | AD125: 6 | AE125: 25 | AF125: 8 | AG125: 19 | AH125: 48 | AI125: 22 | AJ125: 11 | AK125: 24 | AL125: =SUM(B125:AK125) -> 969 | AM125: =AVERAGE(B125:AK125) -> 26.91666667 | AN125: =IF(AM125>=20,TRUE()) -> 1
A126: AACCCGTAGATCCGATCTTGTGC_ssc-miR-99a | B126: 1 | C126: 56 | D126: 11 | E126: 33 | F126: 10 | G126: 14 | H126: 139 | I126: 17 | J126: 14 | K126: 13 | L126: 46 | M126: 40 | N126: 26 | O126: 16 | P126: 6 | Q126: 9 | R126: 23 | S126: 9 | T126: 1 | U126: 14 | V126: 10 | W126: 5 | X126: 17 | Y126: 15 | Z126: 45 | AA126: 22 | AB126: 3 | AC126: 11 | AD126: 18 | AE126: 23 | AF126: 20 | AG126: 15 | AH126: 88 | AI126: 22 | AJ126: 7 | AK126: 20 | AL126: =SUM(B126:AK126) -> 839 | AM126: =AVERAGE(B126:AK126) -> 23.30555556 | AN126: =IF(AM126>=20,TRUE()) -> 1
A127: AACCCGTAGATCCGATCTTGTGG_ssc-miR-99a | B127: 0 | C127: 55 | D127: 8 | E127: 7 | F127: 4 | G127: 12 | H127: 81 | I127: 16 | J127: 60 | K127: 17 | L127: 23 | M127: 32 | N127: 7 | O127: 64 | P127: 13 | Q127: 3 | R127: 103 | S127: 11 | T127: 4 | U127: 21 | V127: 35 | W127: 3 | X127: 4 | Y127: 6 | Z127: 65 | AA127: 16 | AB127: 1 | AC127: 8 | AD127: 12 | AE127: 16 | AF127: 10 | AG127: 4 | AH127: 58 | AI127: 12 | AJ127: 2 | AK127: 33 | AL127: =SUM(B127:AK127) -> 826 | AM127: =AVERAGE(B127:AK127) -> 22.94444444 | AN127: =IF(AM127>=20,TRUE()) -> 1
A128: AACCCGTAGATCCGATCTTGTGT_ssc-miR-99a | B128: 7 | C128: 346 | D128: 37 | E128: 67 | F128: 61 | G128: 62 | H128: 449 | I128: 73 | J128: 53 | K128: 47 | L128: 170 | M128: 216 | N128: 62 | O128: 85 | P128: 57 | Q128: 21 | R128: 96 | S128: 27 | T128: 3 | U128: 98 | V128: 21 | W128: 33 | X128: 53 | Y128: 45 | Z128: 274 | AA128: 90 | AB128: 14 | AC128: 34 | AD128: 80 | AE128: 103 | AF128: 79 | AG128: 64 | AH128: 309 | AI128: 90 | AJ128: 23 | AK128: 108 | AL128: =SUM(B128:AK128) -> 3457 | AM128: =AVERAGE(B128:AK128) -> 96.02777778 | AN128: =IF(AM128>=20,TRUE()) -> 1
A129: AACGCTTTCTGATGTA_hsa-mir-3607 | B129: 32 | C129: 23 | D129: 9 | E129: 17 | F129: 41 | G129: 18 | H129: 14 | I129: 33 | J129: 24 | K129: 37 | L129: 44 | M129: 21 | N129: 3 | O129: 18 | P129: 43 | Q129: 36 | R129: 12 | S129: 20 | T129: 41 | U129: 25 | V129: 35 | W129: 11 | X129: 22 | Y129: 14 | Z129: 25 | AA129: 20 | AB129: 23 | AC129: 37 | AD129: 21 | AE129: 39 | AF129: 7 | AG129: 79 | AH129: 32 | AI129: 11 | AJ129: 52 | AK129: 14 | AL129: =SUM(B129:AK129) -> 953 | AM129: =AVERAGE(B129:AK129) -> 26.47222222 | AN129: =IF(AM129>=20,TRUE()) -> 1
A130: AACGGAATCCCAAAAGC_ssc-miR-191 | B130: 10 | C130: 25 | D130: 10 | E130: 13 | F130: 17 | G130: 9 | H130: 14 | I130: 16 | J130: 8 | K130: 18 | L130: 25 | M130: 41 | N130: 8 | O130: 12 | P130: 6 | Q130: 3 | R130: 11 | S130: 8 | T130: 2 | U130: 16 | V130: 5 | W130: 11 | X130: 4 | Y130: 7 | Z130: 13 | AA130: 8 | AB130: 7 | AC130: 5 | AD130: 12 | AE130: 16 | AF130: 1 | AG130: 14 | AH130: 25 | AI130: 9 | AJ130: 13 | AK130: 4 | AL130: =SUM(B130:AK130) -> 426 | AM130: =AVERAGE(B130:AK130) -> 11.83333333 | AN130: =IF(AM130>=20,TRUE()) -> 0
A131: AACGGAATCCCAAAAGCAGC_ssc-miR-191 | B131: 20 | C131: 47 | D131: 21 | E131: 12 | F131: 28 | G131: 29 | H131: 27 | I131: 28 | J131: 17 | K131: 18 | L131: 43 | M131: 93 | N131: 7 | O131: 16 | P131: 28 | Q131: 10 | R131: 10 | S131: 25 | T131: 8 | U131: 41 | V131: 6 | W131: 14 | X131: 14 | Y131: 14 | Z131: 25 | AA131: 4 | AB131: 12 | AC131: 6 | AD131: 15 | AE131: 26 | AF131: 16 | AG131: 27 | AH131: 57 | AI131: 19 | AJ131: 23 | AK131: 9 | AL131: =SUM(B131:AK131) -> 815 | AM131: =AVERAGE(B131:AK131) -> 22.63888889 | AN131: =IF(AM131>=20,TRUE()) -> 1
A132: AACGGAATCCCAAAAGCAGCA_ssc-miR-191 | B132: 2 | C132: 13 | D132: 7 | E132: 10 | F132: 7 | G132: 25 | H132: 17 | I132: 22 | J132: 8 | K132: 2 | L132: 7 | M132: 18 | N132: 5 | O132: 10 | P132: 5 | Q132: 2 | R132: 11 | S132: 2 | T132: 0 | U132: 7 | V132: 11 | W132: 6 | X132: 8 | Y132: 14 | Z132: 5 | AA132: 2 | AB132: 0 | AC132: 7 | AD132: 11 | AE132: 18 | AF132: 5 | AG132: 6 | AH132: 64 | AI132: 19 | AJ132: 4 | AK132: 16 | AL132: =SUM(B132:AK132) -> 376 | AM132: =AVERAGE(B132:AK132) -> 10.44444444 | AN132: =IF(AM132>=20,TRUE()) -> 0
A133: AACGGAATCCCAAAAGCAGCC_ssc-miR-191 | B133: 19 | C133: 69 | D133: 37 | E133: 47 | F133: 29 | G133: 76 | H133: 93 | I133: 80 | J133: 42 | K133: 14 | L133: 62 | M133: 100 | N133: 24 | O133: 62 | P133: 29 | Q133: 18 | R133: 38 | S133: 27 | T133: 13 | U133: 44 | V133: 35 | W133: 31 | X133: 41 | Y133: 56 | Z133: 59 | AA133: 16 | AB133: 10 | AC133: 54 | AD133: 60 | AE133: 85 | AF133: 52 | AG133: 29 | AH133: 207 | AI133: 69 | AJ133: 22 | AK133: 58 | AL133: =SUM(B133:AK133) -> 1807 | AM133: =AVERAGE(B133:AK133) -> 50.19444444 | AN133: =IF(AM133>=20,TRUE()) -> 1
A134: AACGGAATCCCAAAAGCAGCT_ssc-miR-191 | B134: 99 | C134: 430 | D134: 184 | E134: 147 | F134: 206 | G134: 341 | H134: 290 | I134: 259 | J134: 149 | K134: 82 | L134: 327 | M134: 498 | N134: 98 | O134: 206 | P134: 132 | Q134: 76 | R134: 125 | S134: 144 | T134: 47 | U134: 304 | V134: 84 | W134: 154 | X134: 125 | Y134: 173 | Z134: 214 | AA134: 73 | AB134: 61 | AC134: 114 | AD134: 186 | AE134: 290 | AF134: 156 | AG134: 139 | AH134: 661 | AI134: 209 | AJ134: 98 | AK134: 166 | AL134: =SUM(B134:AK134) -> 7047 | AM134: =AVERAGE(B134:AK134) -> 195.75 | AN134: =IF(AM134>=20,TRUE()) -> 1
A135: AACGGAATCCCAAAAGCAGCTA_ssc-miR-191 | B135: 48 | C135: 68 | D135: 32 | E135: 95 | F135: 38 | G135: 131 | H135: 108 | I135: 130 | J135: 64 | K135: 20 | L135: 94 | M135: 114 | N135: 53 | O135: 92 | P135: 40 | Q135: 15 | R135: 56 | S135: 34 | T135: 37 | U135: 41 | V135: 54 | W135: 41 | X135: 62 | Y135: 73 | Z135: 36 | AA135: 20 | AB135: 15 | AC135: 72 | AD135: 63 | AE135: 74 | AF135: 90 | AG135: 80 | AH135: 227 | AI135: 66 | AJ135: 35 | AK135: 64 | AL135: =SUM(B135:AK135) -> 2382 | AM135: =AVERAGE(B135:AK135) -> 66.16666667 | AN135: =IF(AM135>=20,TRUE()) -> 1
A136: AACGGAATCCCAAAAGCAGCTG_ssc-miR-191 | B136: 1058 | C136: 1551 | D136: 1097 | E136: 1050 | F136: 1646 | G136: 1580 | H136: 1283 | I136: 1305 | J136: 1002 | K136: 1048 | L136: 2037 | M136: 2552 | N136: 546 | O136: 1228 | P136: 1588 | Q136: 865 | R136: 796 | S136: 1314 | T136: 1102 | U136: 1439 | V136: 849 | W136: 1101 | X136: 714 | Y136: 1007 | Z136: 1431 | AA136: 828 | AB136: 676 | AC136: 984 | AD136: 921 | AE136: 1147 | AF136: 753 | AG136: 1567 | AH136: 1902 | AI136: 682 | AJ136: 1324 | AK136: 740 | AL136: =SUM(B136:AK136) -> 42713 | AM136: =AVERAGE(B136:AK136) -> 1186.472222 | AN136: =IF(AM136>=20,TRUE()) -> 1
A137: AACGGAATCCCAAAAGCAGCTGA_ssc-miR-191 | B137: 27 | C137: 38 | D137: 28 | E137: 4 | F137: 20 | G137: 28 | H137: 17 | I137: 26 | J137: 14 | K137: 13 | L137: 30 | M137: 64 | N137: 8 | O137: 8 | P137: 10 | Q137: 16 | R137: 11 | S137: 15 | T137: 15 | U137: 22 | V137: 15 | W137: 20 | X137: 12 | Y137: 13 | Z137: 20 | AA137: 10 | AB137: 2 | AC137: 10 | AD137: 16 | AE137: 25 | AF137: 8 | AG137: 14 | AH137: 45 | AI137: 17 | AJ137: 13 | AK137: 12 | AL137: =SUM(B137:AK137) -> 666 | AM137: =AVERAGE(B137:AK137) -> 18.5 | AN137: =IF(AM137>=20,TRUE()) -> 0
A138: AACGGAATCCCAAAAGCAGCTGT_ssc-miR-191 | B138: 16 | C138: 71 | D138: 27 | E138: 16 | F138: 43 | G138: 58 | H138: 37 | I138: 37 | J138: 18 | K138: 13 | L138: 44 | M138: 68 | N138: 14 | O138: 33 | P138: 26 | Q138: 7 | R138: 14 | S138: 12 | T138: 5 | U138: 27 | V138: 19 | W138: 29 | X138: 27 | Y138: 16 | Z138: 27 | AA138: 13 | AB138: 8 | AC138: 19 | AD138: 15 | AE138: 41 | AF138: 31 | AG138: 31 | AH138: 89 | AI138: 22 | AJ138: 10 | AK138: 32 | AL138: =SUM(B138:AK138) -> 1015 | AM138: =AVERAGE(B138:AK138) -> 28.19444444 | AN138: =IF(AM138>=20,TRUE()) -> 1
A139: AACGGAATCCCAAAAGCAGCTT_ssc-miR-191 | B139: 0 | C139: 9 | D139: 10 | E139: 34 | F139: 2 | G139: 49 | H139: 46 | I139: 32 | J139: 24 | K139: 4 | L139: 16 | M139: 15 | N139: 12 | O139: 31 | P139: 1 | Q139: 2 | R139: 31 | S139: 2 | T139: 7 | U139: 4 | V139: 17 | W139: 6 | X139: 20 | Y139: 14 | Z139: 11 | AA139: 5 | AB139: 3 | AC139: 25 | AD139: 22 | AE139: 20 | AF139: 26 | AG139: 14 | AH139: 80 | AI139: 31 | AJ139: 3 | AK139: 12 | AL139: =SUM(B139:AK139) -> 640 | AM139: =AVERAGE(B139:AK139) -> 17.77777778 | AN139: =IF(AM139>=20,TRUE()) -> 0
A140: AACTGTACTCCAGCCTGGGCAACATAGCGAGACCCCGTCTCTT_ssc-miR-1285 | B140: 10 | C140: 5 | D140: 4 | E140: 20 | F140: 16 | G140: 9 | H140: 21 | I140: 8 | J140: 12 | K140: 5 | L140: 27 | M140: 1 | N140: 15 | O140: 11 | P140: 7 | Q140: 15 | R140: 13 | S140: 39 | T140: 18 | U140: 3 | V140: 18 | W140: 11 | X140: 11 | Y140: 0 | Z140: 10 | AA140: 2 | AB140: 11 | AC140: 7 | AD140: 9 | AE140: 12 | AF140: 8 | AG140: 27 | AH140: 20 | AI140: 12 | AJ140: 9 | AK140: 9 | AL140: =SUM(B140:AK140) -> 435 | AM140: =AVERAGE(B140:AK140) -> 12.08333333 | AN140: =IF(AM140>=20,TRUE()) -> 0
A141: AACTGTGGGGGCACTTT_ssc-miR-371-5p | B141: 29 | C141: 23 | D141: 25 | E141: 35 | F141: 27 | G141: 47 | H141: 29 | I141: 34 | J141: 26 | K141: 26 | L141: 37 | M141: 12 | N141: 13 | O141: 42 | P141: 29 | Q141: 19 | R141: 23 | S141: 32 | T141: 17 | U141: 22 | V141: 32 | W141: 13 | X141: 42 | Y141: 34 | Z141: 31 | AA141: 27 | AB141: 29 | AC141: 40 | AD141: 31 | AE141: 40 | AF141: 30 | AG141: 54 | AH141: 32 | AI141: 12 | AJ141: 28 | AK141: 21 | AL141: =SUM(B141:AK141) -> 1043 | AM141: =AVERAGE(B141:AK141) -> 28.97222222 | AN141: =IF(AM141>=20,TRUE()) -> 1
A142: AACTTATCAGACTGATGTTGAC_hsa-mir-21 | B142: 6 | C142: 18 | D142: 7 | E142: 19 | F142: 17 | G142: 23 | H142: 23 | I142: 8 | J142: 10 | K142: 27 | L142: 38 | M142: 32 | N142: 12 | O142: 18 | P142: 28 | Q142: 23 | R142: 24 | S142: 23 | T142: 7 | U142: 19 | V142: 5 | W142: 14 | X142: 11 | Y142: 16 | Z142: 30 | AA142: 17 | AB142: 7 | AC142: 22 | AD142: 14 | AE142: 27 | AF142: 6 | AG142: 27 | AH142: 19 | AI142: 10 | AJ142: 22 | AK142: 18 | AL142: =SUM(B142:AK142) -> 647 | AM142: =AVERAGE(B142:AK142) -> 17.97222222 | AN142: =IF(AM142>=20,TRUE()) -> 0
A143: AAGAAGTTGACTGAAG_hsa-miR-3653-3p | B143: 26 | C143: 22 | D143: 19 | E143: 60 | F143: 61 | G143: 21 | H143: 80 | I143: 24 | J143: 38 | K143: 78 | L143: 92 | M143: 11 | N143: 46 | O143: 78 | P143: 125 | Q143: 71 | R143: 55 | S143: 67 | T143: 98 | U143: 30 | V143: 59 | W143: 12 | X143: 35 | Y143: 24 | Z143: 108 | AA143: 111 | AB143: 33 | AC143: 67 | AD143: 32 | AE143: 38 | AF143: 32 | AG143: 71 | AH143: 22 | AI143: 16 | AJ143: 137 | AK143: 36 | AL143: =SUM(B143:AK143) -> 1935 | AM143: =AVERAGE(B143:AK143) -> 53.75 | AN143: =IF(AM143>=20,TRUE()) -> 1
A144: AAGCAGGGTCGGGCC_hsa-mir-7641-2 | B144: 46 | C144: 36 | D144: 53 | E144: 24 | F144: 60 | G144: 48 | H144: 40 | I144: 80 | J144: 39 | K144: 44 | L144: 81 | M144: 14 | N144: 35 | O144: 55 | P144: 56 | Q144: 12 | R144: 17 | S144: 28 | T144: 22 | U144: 37 | V144: 56 | W144: 29 | X144: 34 | Y144: 74 | Z144: 50 | AA144: 29 | AB144: 20 | AC144: 59 | AD144: 26 | AE144: 59 | AF144: 32 | AG144: 39 | AH144: 35 | AI144: 29 | AJ144: 40 | AK144: 23 | AL144: =SUM(B144:AK144) -> 1461 | AM144: =AVERAGE(B144:AK144) -> 40.58333333 | AN144: =IF(AM144>=20,TRUE()) -> 1
A145: AAGCTCATCAGACTGATGTTGAC_hsa-mir-21 | B145: 6 | C145: 32 | D145: 15 | E145: 35 | F145: 44 | G145: 42 | H145: 46 | I145: 21 | J145: 12 | K145: 24 | L145: 63 | M145: 68 | N145: 12 | O145: 29 | P145: 45 | Q145: 28 | R145: 20 | S145: 29 | T145: 13 | U145: 22 | V145: 11 | W145: 17 | X145: 21 | Y145: 21 | Z145: 37 | AA145: 31 | AB145: 7 | AC145: 22 | AD145: 10 | AE145: 34 | AF145: 10 | AG145: 41 | AH145: 23 | AI145: 11 | AJ145: 24 | AK145: 17 | AL145: =SUM(B145:AK145) -> 943 | AM145: =AVERAGE(B145:AK145) -> 26.19444444 | AN145: =IF(AM145>=20,TRUE()) -> 1
A146: AAGCTCGGTCTGAGGCCCCTC_bta-miR-423-3p | B146: 82 | C146: 118 | D146: 88 | E146: 161 | F146: 116 | G146: 97 | H146: 187 | I146: 104 | J146: 101 | K146: 121 | L146: 192 | M146: 127 | N146: 50 | O146: 95 | P146: 188 | Q146: 131 | R146: 125 | S146: 143 | T146: 117 | U146: 88 | V146: 81 | W146: 56 | X146: 69 | Y146: 89 | Z146: 193 | AA146: 153 | AB146: 69 | AC146: 124 | AD146: 82 | AE146: 120 | AF146: 67 | AG146: 193 | AH146: 134 | AI146: 39 | AJ146: 191 | AK146: 57 | AL146: =SUM(B146:AK146) -> 4148 | AM146: =AVERAGE(B146:AK146) -> 115.2222222 | AN146: =IF(AM146>=20,TRUE()) -> 1
A147: AAGCTCGGTCTGAGGCCCCTCA_bta-miR-423-3p | B147: 11 | C147: 72 | D147: 30 | E147: 54 | F147: 35 | G147: 27 | H147: 61 | I147: 35 | J147: 30 | K147: 50 | L147: 65 | M147: 76 | N147: 15 | O147: 27 | P147: 44 | Q147: 52 | R147: 38 | S147: 48 | T147: 23 | U147: 34 | V147: 31 | W147: 16 | X147: 30 | Y147: 14 | Z147: 63 | AA147: 42 | AB147: 16 | AC147: 20 | AD147: 35 | AE147: 42 | AF147: 19 | AG147: 40 | AH147: 70 | AI147: 16 | AJ147: 59 | AK147: 16 | AL147: =SUM(B147:AK147) -> 1356 | AM147: =AVERAGE(B147:AK147) -> 37.66666667 | AN147: =IF(AM147>=20,TRUE()) -> 1
A148: AAGCTCGGTCTGAGGCCCCTCAG_ssc-miR-423-3p | B148: 63 | C148: 124 | D148: 85 | E148: 94 | F148: 129 | G148: 88 | H148: 130 | I148: 120 | J148: 100 | K148: 137 | L148: 205 | M148: 178 | N148: 47 | O148: 106 | P148: 155 | Q148: 110 | R148: 81 | S148: 139 | T148: 61 | U148: 129 | V148: 102 | W148: 74 | X148: 46 | Y148: 72 | Z148: 156 | AA148: 128 | AB148: 63 | AC148: 84 | AD148: 88 | AE148: 116 | AF148: 55 | AG148: 138 | AH148: 118 | AI148: 49 | AJ148: 139 | AK148: 60 | AL148: =SUM(B148:AK148) -> 3769 | AM148: =AVERAGE(B148:AK148) -> 104.6944444 | AN148: =IF(AM148>=20,TRUE()) -> 1
A149: AAGCTCGGTCTGAGGCCCCTCAGA_ssc-miR-423-3p | B149: 35 | C149: 49 | D149: 45 | E149: 64 | F149: 53 | G149: 50 | H149: 75 | I149: 59 | J149: 37 | K149: 48 | L149: 78 | M149: 86 | N149: 25 | O149: 44 | P149: 69 | Q149: 42 | R149: 32 | S149: 56 | T149: 42 | U149: 32 | V149: 33 | W149: 27 | X149: 26 | Y149: 43 | Z149: 88 | AA149: 66 | AB149: 32 | AC149: 64 | AD149: 41 | AE149: 52 | AF149: 35 | AG149: 51 | AH149: 69 | AI149: 30 | AJ149: 80 | AK149: 31 | AL149: =SUM(B149:AK149) -> 1789 | AM149: =AVERAGE(B149:AK149) -> 49.69444444 | AN149: =IF(AM149>=20,TRUE()) -> 1
A150: AAGCTCGGTCTGAGGCCCCTCAGC_ssc-miR-423-3p | B150: 40 | C150: 52 | D150: 61 | E150: 212 | F150: 98 | G150: 162 | H150: 235 | I150: 214 | J150: 148 | K150: 73 | L150: 207 | M150: 92 | N150: 81 | O150: 143 | P150: 117 | Q150: 84 | R150: 175 | S150: 85 | T150: 80 | U150: 68 | V150: 124 | W150: 34 | X150: 118 | Y150: 152 | Z150: 145 | AA150: 89 | AB150: 52 | AC150: 227 | AD150: 132 | AE150: 175 | AF150: 143 | AG150: 172 | AH150: 233 | AI150: 81 | AJ150: 137 | AK150: 101 | AL150: =SUM(B150:AK150) -> 4542 | AM150: =AVERAGE(B150:AK150) -> 126.1666667 | AN150: =IF(AM150>=20,TRUE()) -> 1
A151: AAGCTCGGTCTGAGGCCCCTCAGG_ssc-miR-423-3p | B151: 4 | C151: 16 | D151: 6 | E151: 10 | F151: 6 | G151: 15 | H151: 15 | I151: 8 | J151: 68 | K151: 2 | L151: 8 | M151: 11 | N151: 4 | O151: 74 | P151: 5 | Q151: 5 | R151: 78 | S151: 9 | T151: 4 | U151: 5 | V151: 62 | W151: 3 | X151: 12 | Y151: 10 | Z151: 10 | AA151: 6 | AB151: 3 | AC151: 6 | AD151: 16 | AE151: 9 | AF151: 7 | AG151: 12 | AH151: 7 | AI151: 4 | AJ151: 7 | AK151: 16 | AL151: =SUM(B151:AK151) -> 543 | AM151: =AVERAGE(B151:AK151) -> 15.08333333 | AN151: =IF(AM151>=20,TRUE()) -> 0
A152: AAGCTCGGTCTGAGGCCCCTCAGT_ssc-miR-423-3p | B152: 329 | C152: 568 | D152: 375 | E152: 752 | F152: 672 | G152: 699 | H152: 929 | I152: 884 | J152: 641 | K152: 518 | L152: 1021 | M152: 826 | N152: 340 | O152: 652 | P152: 834 | Q152: 480 | R152: 522 | S152: 668 | T152: 480 | U152: 485 | V152: 497 | W152: 337 | X152: 469 | Y152: 605 | Z152: 763 | AA152: 488 | AB152: 308 | AC152: 794 | AD152: 574 | AE152: 708 | AF152: 483 | AG152: 886 | AH152: 964 | AI152: 349 | AJ152: 664 | AK152: 422 | AL152: =SUM(B152:AK152) -> 21986 | AM152: =AVERAGE(B152:AK152) -> 610.7222222 | AN152: =IF(AM152>=20,TRUE()) -> 1
A153: AAGCTCGGTCTGAGGCCCCTCAGTA_ssc-miR-423-3p | B153: 32 | C153: 51 | D153: 41 | E153: 55 | F153: 48 | G153: 34 | H153: 60 | I153: 42 | J153: 37 | K153: 52 | L153: 64 | M153: 63 | N153: 13 | O153: 38 | P153: 71 | Q153: 60 | R153: 40 | S153: 61 | T153: 51 | U153: 40 | V153: 32 | W153: 35 | X153: 24 | Y153: 30 | Z153: 72 | AA153: 53 | AB153: 36 | AC153: 54 | AD153: 33 | AE153: 37 | AF153: 16 | AG153: 69 | AH153: 49 | AI153: 23 | AJ153: 79 | AK153: 20 | AL153: =SUM(B153:AK153) -> 1615 | AM153: =AVERAGE(B153:AK153) -> 44.86111111 | AN153: =IF(AM153>=20,TRUE()) -> 1
A154: AAGCTCGGTCTGAGGCCCCTT_ssc-miR-423-3p | B154: 4 | C154: 6 | D154: 1 | E154: 29 | F154: 7 | G154: 18 | H154: 39 | I154: 19 | J154: 21 | K154: 7 | L154: 14 | M154: 4 | N154: 15 | O154: 22 | P154: 10 | Q154: 3 | R154: 35 | S154: 5 | T154: 13 | U154: 4 | V154: 26 | W154: 1 | X154: 19 | Y154: 16 | Z154: 15 | AA154: 5 | AB154: 3 | AC154: 42 | AD154: 24 | AE154: 23 | AF154: 19 | AG154: 23 | AH154: 31 | AI154: 11 | AJ154: 5 | AK154: 12 | AL154: =SUM(B154:AK154) -> 551 | AM154: =AVERAGE(B154:AK154) -> 15.30555556 | AN154: =IF(AM154>=20,TRUE()) -> 0
A155: AAGCTGCCAGTTGAAGAAC_ssc-miR-22-3p | B155: 20 | C155: 31 | D155: 33 | E155: 82 | F155: 41 | G155: 27 | H155: 93 | I155: 19 | J155: 33 | K155: 79 | L155: 72 | M155: 40 | N155: 49 | O155: 40 | P155: 45 | Q155: 29 | R155: 34 | S155: 118 | T155: 46 | U155: 32 | V155: 26 | W155: 14 | X155: 24 | Y155: 27 | Z155: 90 | AA155: 81 | AB155: 16 | AC155: 30 | AD155: 36 | AE155: 91 | AF155: 78 | AG155: 56 | AH155: 30 | AI155: 14 | AJ155: 129 | AK155: 82 | AL155: =SUM(B155:AK155) -> 1787 | AM155: =AVERAGE(B155:AK155) -> 49.63888889 | AN155: =IF(AM155>=20,TRUE()) -> 1
A156: AAGCTGCCAGTTGAAGAACC_ssc-miR-22-3p | B156: 3 | C156: 13 | D156: 26 | E156: 101 | F156: 15 | G156: 40 | H156: 84 | I156: 21 | J156: 17 | K156: 33 | L156: 52 | M156: 25 | N156: 23 | O156: 34 | P156: 11 | Q156: 16 | R156: 66 | S156: 27 | T156: 20 | U156: 17 | V156: 33 | W156: 5 | X156: 36 | Y156: 42 | Z156: 43 | AA156: 32 | AB156: 5 | AC156: 55 | AD156: 57 | AE156: 94 | AF156: 61 | AG156: 57 | AH156: 51 | AI156: 24 | AJ156: 24 | AK156: 46 | AL156: =SUM(B156:AK156) -> 1309 | AM156: =AVERAGE(B156:AK156) -> 36.36111111 | AN156: =IF(AM156>=20,TRUE()) -> 1
A157: AAGCTGCCAGTTGAAGAACT_ssc-miR-22-3p | B157: 30 | C157: 92 | D157: 147 | E157: 216 | F157: 154 | G157: 158 | H157: 292 | I157: 107 | J157: 94 | K157: 196 | L157: 212 | M157: 145 | N157: 100 | O157: 141 | P157: 125 | Q157: 57 | R157: 148 | S157: 180 | T157: 54 | U157: 110 | V157: 112 | W157: 41 | X157: 118 | Y157: 152 | Z157: 199 | AA157: 154 | AB157: 64 | AC157: 141 | AD157: 179 | AE157: 301 | AF157: 139 | AG157: 193 | AH157: 201 | AI157: 79 | AJ157: 161 | AK157: 174 | AL157: =SUM(B157:AK157) -> 5166 | AM157: =AVERAGE(B157:AK157) -> 143.5 | AN157: =IF(AM157>=20,TRUE()) -> 1
A158: AAGCTGCCAGTTGAAGAACTG_ssc-miR-22-3p | B158: 15 | C158: 24 | D158: 37 | E158: 12 | F158: 44 | G158: 50 | H158: 32 | I158: 24 | J158: 14 | K158: 30 | L158: 48 | M158: 107 | N158: 11 | O158: 20 | P158: 31 | Q158: 11 | R158: 9 | S158: 23 | T158: 11 | U158: 63 | V158: 7 | W158: 27 | X158: 10 | Y158: 42 | Z158: 26 | AA158: 20 | AB158: 11 | AC158: 9 | AD158: 19 | AE158: 27 | AF158: 13 | AG158: 35 | AH158: 49 | AI158: 15 | AJ158: 17 | AK158: 11 | AL158: =SUM(B158:AK158) -> 954 | AM158: =AVERAGE(B158:AK158) -> 26.5 | AN158: =IF(AM158>=20,TRUE()) -> 1
A159: AAGCTGCCAGTTGAAGAACTGA_ssc-miR-22-3p | B159: 51 | C159: 153 | D159: 123 | E159: 173 | F159: 148 | G159: 345 | H159: 245 | I159: 240 | J159: 144 | K159: 107 | L159: 230 | M159: 378 | N159: 89 | O159: 167 | P159: 106 | Q159: 77 | R159: 165 | S159: 126 | T159: 40 | U159: 155 | V159: 96 | W159: 121 | X159: 167 | Y159: 238 | Z159: 127 | AA159: 63 | AB159: 36 | AC159: 145 | AD159: 165 | AE159: 276 | AF159: 142 | AG159: 225 | AH159: 339 | AI159: 118 | AJ159: 96 | AK159: 149 | AL159: =SUM(B159:AK159) -> 5765 | AM159: =AVERAGE(B159:AK159) -> 160.1388889 | AN159: =IF(AM159>=20,TRUE()) -> 1
A160: AAGCTGCCAGTTGAAGAACTGC_ssc-miR-22-3p | B160: 393 | C160: 619 | D160: 731 | E160: 1693 | F160: 1185 | G160: 2598 | H160: 2144 | I160: 1720 | J160: 1029 | K160: 800 | L160: 2011 | M160: 1927 | N160: 953 | O160: 1471 | P160: 823 | Q160: 680 | R160: 1551 | S160: 985 | T160: 406 | U160: 885 | V160: 687 | W160: 693 | X160: 1822 | Y160: 1861 | Z160: 1298 | AA160: 672 | AB160: 345 | AC160: 1758 | AD160: 1210 | AE160: 2249 | AF160: 1222 | AG160: 1606 | AH160: 2631 | AI160: 869 | AJ160: 864 | AK160: 1331 | AL160: =SUM(B160:AK160) -> 45722 | AM160: =AVERAGE(B160:AK160) -> 1270.055556 | AN160: =IF(AM160>=20,TRUE()) -> 1
A161: AAGCTGCCAGTTGAAGAACTGG_ssc-miR-22-3p | B161: 24 | C161: 105 | D161: 63 | E161: 56 | F161: 87 | G161: 181 | H161: 80 | I161: 93 | J161: 322 | K161: 46 | L161: 103 | M161: 116 | N161: 59 | O161: 618 | P161: 39 | Q161: 36 | R161: 620 | S161: 50 | T161: 20 | U161: 66 | V161: 336 | W161: 38 | X161: 103 | Y161: 133 | Z161: 138 | AA161: 26 | AB161: 24 | AC161: 77 | AD161: 74 | AE161: 131 | AF161: 58 | AG161: 69 | AH161: 175 | AI161: 68 | AJ161: 22 | AK161: 136 | AL161: =SUM(B161:AK161) -> 4392 | AM161: =AVERAGE(B161:AK161) -> 122 | AN161: =IF(AM161>=20,TRUE()) -> 1
A162: AAGCTGCCAGTTGAAGAACTGT_ssc-miR-22-3p | B162: 2689 | C162: 4491 | D162: 4601 | E162: 5289 | F162: 9011 | G162: 11201 | H162: 8201 | I162: 6905 | J162: 4223 | K162: 4650 | L162: 10718 | M162: 14624 | N162: 3163 | O162: 5982 | P162: 5708 | Q162: 4285 | R162: 4808 | S162: 6081 | T162: 1986 | U162: 6429 | V162: 2434 | W162: 4674 | X162: 6659 | Y162: 8408 | Z162: 6471 | AA162: 3880 | AB162: 2212 | AC162: 5526 | AD162: 4790 | AE162: 9578 | AF162: 4120 | AG162: 7890 | AH162: 10712 | AI162: 3660 | AJ162: 4950 | AK162: 5337 | AL162: =SUM(B162:AK162) -> 216346 | AM162: =AVERAGE(B162:AK162) -> 6009.611111 | AN162: =IF(AM162>=20,TRUE()) -> 1
A163: AAGCTGCCAGTTGAAGAACTGTA_ssc-miR-22-3p | B163: 64 | C163: 116 | D163: 118 | E163: 77 | F163: 173 | G163: 183 | H163: 102 | I163: 94 | J163: 61 | K163: 76 | L163: 201 | M163: 448 | N163: 47 | O163: 101 | P163: 102 | Q163: 72 | R163: 48 | S163: 102 | T163: 45 | U163: 129 | V163: 33 | W163: 102 | X163: 80 | Y163: 111 | Z163: 77 | AA163: 55 | AB163: 50 | AC163: 56 | AD163: 74 | AE163: 113 | AF163: 61 | AG163: 131 | AH163: 131 | AI163: 52 | AJ163: 99 | AK163: 72 | AL163: =SUM(B163:AK163) -> 3656 | AM163: =AVERAGE(B163:AK163) -> 101.5555556 | AN163: =IF(AM163>=20,TRUE()) -> 1
A164: AAGCTGCCAGTTGAAGAACTGTT_ssc-miR-22-3p | B164: 5 | C164: 34 | D164: 34 | E164: 20 | F164: 57 | G164: 73 | H164: 35 | I164: 30 | J164: 12 | K164: 28 | L164: 49 | M164: 60 | N164: 24 | O164: 47 | P164: 36 | Q164: 30 | R164: 28 | S164: 42 | T164: 5 | U164: 15 | V164: 15 | W164: 29 | X164: 35 | Y164: 37 | Z164: 30 | AA164: 13 | AB164: 10 | AC164: 25 | AD164: 32 | AE164: 46 | AF164: 21 | AG164: 43 | AH164: 59 | AI164: 22 | AJ164: 27 | AK164: 25 | AL164: =SUM(B164:AK164) -> 1133 | AM164: =AVERAGE(B164:AK164) -> 31.47222222 | AN164: =IF(AM164>=20,TRUE()) -> 1
A165: AAGCTGGGTTGAGAGGGCGAA_ssc-miR-320 | B165: 14 | C165: 22 | D165: 21 | E165: 4 | F165: 10 | G165: 12 | H165: 7 | I165: 10 | J165: 7 | K165: 3 | L165: 18 | M165: 37 | N165: 1 | O165: 13 | P165: 11 | Q165: 7 | R165: 2 | S165: 10 | T165: 6 | U165: 7 | V165: 4 | W165: 13 | X165: 7 | Y165: 10 | Z165: 9 | AA165: 3 | AB165: 6 | AC165: 4 | AD165: 4 | AE165: 7 | AF165: 9 | AG165: 9 | AH165: 17 | AI165: 5 | AJ165: 18 | AK165: 9 | AL165: =SUM(B165:AK165) -> 356 | AM165: =AVERAGE(B165:AK165) -> 9.888888889 | AN165: =IF(AM165>=20,TRUE()) -> 0
A166: AAGCTGGGTTGAGAGGGCGAAA_ssc-miR-320 | B166: 24 | C166: 33 | D166: 12 | E166: 11 | F166: 17 | G166: 16 | H166: 11 | I166: 22 | J166: 13 | K166: 8 | L166: 15 | M166: 46 | N166: 5 | O166: 10 | P166: 15 | Q166: 9 | R166: 5 | S166: 9 | T166: 16 | U166: 20 | V166: 10 | W166: 13 | X166: 6 | Y166: 8 | Z166: 12 | AA166: 7 | AB166: 11 | AC166: 8 | AD166: 7 | AE166: 8 | AF166: 7 | AG166: 9 | AH166: 29 | AI166: 7 | AJ166: 7 | AK166: 8 | AL166: =SUM(B166:AK166) -> 474 | AM166: =AVERAGE(B166:AK166) -> 13.16666667 | AN166: =IF(AM166>=20,TRUE()) -> 0
A167: AAGCTTACCAGACTGATGTTGAC_hsa-mir-21 | B167: 11 | C167: 49 | D167: 28 | E167: 26 | F167: 66 | G167: 43 | H167: 67 | I167: 25 | J167: 14 | K167: 42 | L167: 88 | M167: 88 | N167: 16 | O167: 40 | P167: 56 | Q167: 34 | R167: 31 | S167: 57 | T167: 20 | U167: 51 | V167: 10 | W167: 20 | X167: 27 | Y167: 35 | Z167: 54 | AA167: 37 | AB167: 20 | AC167: 28 | AD167: 24 | AE167: 61 | AF167: 16 | AG167: 40 | AH167: 37 | AI167: 17 | AJ167: 41 | AK167: 28 | AL167: =SUM(B167:AK167) -> 1347 | AM167: =AVERAGE(B167:AK167) -> 37.41666667 | AN167: =IF(AM167>=20,TRUE()) -> 1
A168: AAGCTTATCAGACCGATGTTGAC_hsa-mir-21 | B168: 5 | C168: 47 | D168: 16 | E168: 33 | F168: 62 | G168: 39 | H168: 59 | I168: 24 | J168: 12 | K168: 36 | L168: 72 | M168: 77 | N168: 14 | O168: 36 | P168: 57 | Q168: 50 | R168: 36 | S168: 41 | T168: 13 | U168: 39 | V168: 12 | W168: 30 | X168: 25 | Y168: 35 | Z168: 47 | AA168: 41 | AB168: 14 | AC168: 18 | AD168: 24 | AE168: 44 | AF168: 19 | AG168: 49 | AH168: 42 | AI168: 17 | AJ168: 43 | AK168: 25 | AL168: =SUM(B168:AK168) -> 1253 | AM168: =AVERAGE(B168:AK168) -> 34.80555556 | AN168: =IF(AM168>=20,TRUE()) -> 1
A169: AAGCTTATCAGACTGACGTTGAC_hsa-mir-21 | B169: 13 | C169: 27 | D169: 21 | E169: 24 | F169: 34 | G169: 44 | H169: 48 | I169: 23 | J169: 9 | K169: 31 | L169: 54 | M169: 58 | N169: 3 | O169: 18 | P169: 43 | Q169: 36 | R169: 32 | S169: 33 | T169: 9 | U169: 21 | V169: 16 | W169: 20 | X169: 19 | Y169: 28 | Z169: 40 | AA169: 32 | AB169: 10 | AC169: 14 | AD169: 12 | AE169: 35 | AF169: 17 | AG169: 32 | AH169: 28 | AI169: 19 | AJ169: 35 | AK169: 20 | AL169: =SUM(B169:AK169) -> 958 | AM169: =AVERAGE(B169:AK169) -> 26.61111111 | AN169: =IF(AM169>=20,TRUE()) -> 1
A170: AAGCTTATCAGACTGATG_hsa-mir-21 | B170: 8 | C170: 14 | D170: 7 | E170: 37 | F170: 43 | G170: 34 | H170: 68 | I170: 11 | J170: 10 | K170: 59 | L170: 72 | M170: 31 | N170: 34 | O170: 28 | P170: 58 | Q170: 34 | R170: 34 | S170: 102 | T170: 20 | U170: 19 | V170: 14 | W170: 9 | X170: 32 | Y170: 21 | Z170: 86 | AA170: 63 | AB170: 19 | AC170: 32 | AD170: 28 | AE170: 60 | AF170: 29 | AG170: 57 | AH170: 10 | AI170: 6 | AJ170: 83 | AK170: 79 | AL170: =SUM(B170:AK170) -> 1351 | AM170: =AVERAGE(B170:AK170) -> 37.52777778 | AN170: =IF(AM170>=20,TRUE()) -> 1
A171: AAGCTTATCAGACTGATGCTGAC_hsa-mir-21 | B171: 8 | C171: 48 | D171: 22 | E171: 28 | F171: 71 | G171: 40 | H171: 59 | I171: 11 | J171: 16 | K171: 44 | L171: 63 | M171: 77 | N171: 14 | O171: 21 | P171: 53 | Q171: 53 | R171: 21 | S171: 36 | T171: 7 | U171: 31 | V171: 13 | W171: 21 | X171: 35 | Y171: 42 | Z171: 45 | AA171: 30 | AB171: 11 | AC171: 13 | AD171: 29 | AE171: 49 | AF171: 12 | AG171: 50 | AH171: 28 | AI171: 20 | AJ171: 38 | AK171: 18 | AL171: =SUM(B171:AK171) -> 1177 | AM171: =AVERAGE(B171:AK171) -> 32.69444444 | AN171: =IF(AM171>=20,TRUE()) -> 1
A172: AAGCTTATCAGACTGATGT_hsa-mir-21 | B172: 6 | C172: 39 | D172: 18 | E172: 21 | F172: 24 | G172: 35 | H172: 60 | I172: 22 | J172: 15 | K172: 19 | L172: 55 | M172: 66 | N172: 14 | O172: 19 | P172: 23 | Q172: 8 | R172: 32 | S172: 48 | T172: 3 | U172: 40 | V172: 3 | W172: 16 | X172: 11 | Y172: 30 | Z172: 53 | AA172: 22 | AB172: 5 | AC172: 14 | AD172: 32 | AE172: 42 | AF172: 31 | AG172: 21 | AH172: 78 | AI172: 16 | AJ172: 30 | AK172: 62 | AL172: =SUM(B172:AK172) -> 1033 | AM172: =AVERAGE(B172:AK172) -> 28.69444444 | AN172: =IF(AM172>=20,TRUE()) -> 1
A173: AAGCTTATCAGACTGATGTT_hsa-mir-21 | B173: 2 | C173: 11 | D173: 10 | E173: 18 | F173: 20 | G173: 21 | H173: 38 | I173: 11 | J173: 10 | K173: 18 | L173: 43 | M173: 40 | N173: 17 | O173: 15 | P173: 5 | Q173: 10 | R173: 19 | S173: 58 | T173: 1 | U173: 19 | V173: 2 | W173: 14 | X173: 11 | Y173: 19 | Z173: 25 | AA173: 10 | AB173: 7 | AC173: 6 | AD173: 11 | AE173: 34 | AF173: 19 | AG173: 13 | AH173: 50 | AI173: 11 | AJ173: 22 | AK173: 54 | AL173: =SUM(B173:AK173) -> 694 | AM173: =AVERAGE(B173:AK173) -> 19.27777778 | AN173: =IF(AM173>=20,TRUE()) -> 0
A174: AAGCTTATCAGACTGATGTTA_hsa-mir-21 | B174: 1 | C174: 17 | D174: 9 | E174: 14 | F174: 6 | G174: 20 | H174: 30 | I174: 15 | J174: 4 | K174: 3 | L174: 27 | M174: 39 | N174: 8 | O174: 9 | P174: 1 | Q174: 3 | R174: 12 | S174: 6 | T174: 0 | U174: 9 | V174: 2 | W174: 6 | X174: 14 | Y174: 14 | Z174: 20 | AA174: 6 | AB174: 3 | AC174: 3 | AD174: 17 | AE174: 27 | AF174: 25 | AG174: 8 | AH174: 104 | AI174: 20 | AJ174: 1 | AK174: 20 | AL174: =SUM(B174:AK174) -> 523 | AM174: =AVERAGE(B174:AK174) -> 14.52777778 | AN174: =IF(AM174>=20,TRUE()) -> 0
A175: AAGCTTATCAGACTGATGTTG_hsa-mir-21 | B175: 41 | C175: 532 | D175: 135 | E175: 121 | F175: 284 | G175: 225 | H175: 350 | I175: 142 | J175: 132 | K175: 168 | L175: 600 | M175: 781 | N175: 93 | O175: 164 | P175: 157 | Q175: 100 | R175: 240 | S175: 248 | T175: 24 | U175: 415 | V175: 46 | W175: 169 | X175: 100 | Y175: 241 | Z175: 395 | AA175: 211 | AB175: 55 | AC175: 71 | AD175: 153 | AE175: 285 | AF175: 139 | AG175: 189 | AH175: 854 | AI175: 178 | AJ175: 160 | AK175: 284 | AL175: =SUM(B175:AK175) -> 8482 | AM175: =AVERAGE(B175:AK175) -> 235.6111111 | AN175: =IF(AM175>=20,TRUE()) -> 1
A176: AAGCTTATCAGACTGATGTTGA_hsa-mir-21 | B176: 71 | C176: 848 | D176: 221 | E176: 99 | F176: 406 | G176: 354 | H176: 371 | I176: 220 | J176: 137 | K176: 184 | L176: 815 | M176: 1240 | N176: 90 | O176: 224 | P176: 217 | Q176: 110 | R176: 159 | S176: 256 | T176: 25 | U176: 601 | V176: 46 | W176: 325 | X176: 142 | Y176: 302 | Z176: 360 | AA176: 185 | AB176: 85 | AC176: 80 | AD176: 211 | AE176: 338 | AF176: 157 | AG176: 238 | AH176: 1237 | AI176: 253 | AJ176: 113 | AK176: 277 | AL176: =SUM(B176:AK176) -> 10997 | AM176: =AVERAGE(B176:AK176) -> 305.4722222 | AN176: =IF(AM176>=20,TRUE()) -> 1
A177: AAGCTTATCAGACTGATGTTGAA_hsa-mir-21 | B177: 23 | C177: 224 | D177: 53 | E177: 124 | F177: 108 | G177: 244 | H177: 330 | I177: 141 | J177: 77 | K177: 60 | L177: 259 | M177: 261 | N177: 82 | O177: 129 | P177: 87 | Q177: 61 | R177: 161 | S177: 91 | T177: 24 | U177: 118 | V177: 35 | W177: 70 | X177: 160 | Y177: 175 | Z177: 184 | AA177: 66 | AB177: 25 | AC177: 93 | AD177: 109 | AE177: 257 | AF177: 101 | AG177: 137 | AH177: 360 | AI177: 151 | AJ177: 62 | AK177: 136 | AL177: =SUM(B177:AK177) -> 4778 | AM177: =AVERAGE(B177:AK177) -> 132.7222222 | AN177: =IF(AM177>=20,TRUE()) -> 1
A178: AAGCTTATCAGACTGATGTTGAC_hsa-mir-21 | B178: 3460 | C178: 12787 | D178: 5273 | E178: 8859 | F178: 17202 | G178: 12929 | H178: 18949 | I178: 8048 | J178: 6443 | K178: 11118 | L178: 22844 | M178: 23440 | N178: 3998 | O178: 8608 | P178: 17793 | Q178: 14868 | R178: 10081 | S178: 12945 | T178: 4124 | U178: 11442 | V178: 3710 | W178: 7548 | X178: 9280 | Y178: 10615 | Z178: 14627 | AA178: 11841 | AB178: 4109 | AC178: 6781 | AD178: 7473 | AE178: 14216 | AF178: 4678 | AG178: 15422 | AH178: 12908 | AI178: 5357 | AJ178: 12936 | AK178: 7228 | AL178: =SUM(B178:AK178) -> 383940 | AM178: =AVERAGE(B178:AK178) -> 10665 | AN178: =IF(AM178>=20,TRUE()) -> 1
A179: AAGCTTATCAGACTGATGTTGACA_hsa-mir-21 | B179: 302 | C179: 1553 | D179: 438 | E179: 410 | F179: 1071 | G179: 819 | H179: 1014 | I179: 625 | J179: 387 | K179: 492 | L179: 1474 | M179: 2350 | N179: 230 | O179: 513 | P179: 965 | Q179: 677 | R179: 513 | S179: 760 | T179: 220 | U179: 813 | V179: 207 | W179: 554 | X179: 492 | Y179: 664 | Z179: 801 | AA179: 493 | AB179: 233 | AC179: 322 | AD179: 513 | AE179: 818 | AF179: 277 | AG179: 753 | AH179: 1162 | AI179: 400 | AJ179: 543 | AK179: 379 | AL179: =SUM(B179:AK179) -> 24237 | AM179: =AVERAGE(B179:AK179) -> 673.25 | AN179: =IF(AM179>=20,TRUE()) -> 1
A180: AAGCTTATCAGACTGATGTTGACC_hsa-mir-21 | B180: 87 | C180: 362 | D180: 161 | E180: 414 | F180: 492 | G180: 492 | H180: 737 | I180: 297 | J180: 213 | K180: 278 | L180: 594 | M180: 620 | N180: 232 | O180: 469 | P180: 351 | Q180: 292 | R180: 400 | S180: 426 | T180: 165 | U180: 216 | V180: 163 | W180: 225 | X180: 438 | Y180: 320 | Z180: 389 | AA180: 267 | AB180: 114 | AC180: 273 | AD180: 292 | AE180: 416 | AF180: 232 | AG180: 407 | AH180: 418 | AI180: 200 | AJ180: 480 | AK180: 362 | AL180: =SUM(B180:AK180) -> 12294 | AM180: =AVERAGE(B180:AK180) -> 341.5 | AN180: =IF(AM180>=20,TRUE()) -> 1
A181: AAGCTTATCAGACTGATGTTGACG_hsa-mir-21 | B181: 14 | C181: 97 | D181: 31 | E181: 33 | F181: 63 | G181: 73 | H181: 81 | I181: 40 | J181: 108 | K181: 29 | L181: 69 | M181: 84 | N181: 21 | O181: 196 | P181: 46 | Q181: 23 | R181: 189 | S181: 42 | T181: 5 | U181: 42 | V181: 94 | W181: 32 | X181: 33 | Y181: 52 | Z181: 72 | AA181: 19 | AB181: 9 | AC181: 23 | AD181: 30 | AE181: 60 | AF181: 27 | AG181: 48 | AH181: 91 | AI181: 31 | AJ181: 35 | AK181: 46 | AL181: =SUM(B181:AK181) -> 1988 | AM181: =AVERAGE(B181:AK181) -> 55.22222222 | AN181: =IF(AM181>=20,TRUE()) -> 1
A182: AAGCTTATCAGACTGATGTTGACT_hsa-mir-21 | B182: 166 | C182: 1118 | D182: 317 | E182: 647 | F182: 805 | G182: 970 | H182: 1697 | I182: 571 | J182: 468 | K182: 527 | L182: 1199 | M182: 1307 | N182: 372 | O182: 812 | P182: 677 | Q182: 531 | R182: 748 | S182: 639 | T182: 196 | U182: 500 | V182: 289 | W182: 324 | X182: 792 | Y182: 728 | Z182: 805 | AA182: 563 | AB182: 204 | AC182: 463 | AD182: 576 | AE182: 972 | AF182: 499 | AG182: 714 | AH182: 1109 | AI182: 495 | AJ182: 540 | AK182: 696 | AL182: =SUM(B182:AK182) -> 24036 | AM182: =AVERAGE(B182:AK182) -> 667.6666667 | AN182: =IF(AM182>=20,TRUE()) -> 1
A183: AAGCTTATCAGACTGATGTTGAT_hsa-mir-21 | B183: 142 | C183: 900 | D183: 315 | E183: 1923 | F183: 575 | G183: 2567 | H183: 4219 | I183: 1494 | J183: 1116 | K183: 502 | L183: 1721 | M183: 1258 | N183: 911 | O183: 1651 | P183: 624 | Q183: 516 | R183: 2062 | S183: 484 | T183: 294 | U183: 395 | V183: 631 | W183: 332 | X183: 2006 | Y183: 1853 | Z183: 1090 | AA183: 428 | AB183: 173 | AC183: 1372 | AD183: 1305 | AE183: 2613 | AF183: 1093 | AG183: 1226 | AH183: 2593 | AI183: 1488 | AJ183: 578 | AK183: 1397 | AL183: =SUM(B183:AK183) -> 43847 | AM183: =AVERAGE(B183:AK183) -> 1217.972222 | AN183: =IF(AM183>=20,TRUE()) -> 1
A184: AAGCTTATCAGACTGATGTTGG_hsa-mir-21 | B184: 3 | C184: 15 | D184: 2 | E184: 5 | F184: 4 | G184: 10 | H184: 4 | I184: 4 | J184: 13 | K184: 1 | L184: 7 | M184: 11 | N184: 2 | O184: 25 | P184: 2 | Q184: 1 | R184: 25 | S184: 3 | T184: 0 | U184: 13 | V184: 10 | W184: 5 | X184: 1 | Y184: 3 | Z184: 10 | AA184: 3 | AB184: 2 | AC184: 2 | AD184: 1 | AE184: 4 | AF184: 5 | AG184: 9 | AH184: 20 | AI184: 4 | AJ184: 2 | AK184: 4 | AL184: =SUM(B184:AK184) -> 235 | AM184: =AVERAGE(B184:AK184) -> 6.527777778 | AN184: =IF(AM184>=20,TRUE()) -> 0
A185: AAGCTTATCAGACTGGTGTTGAC_hsa-mir-21 | B185: 16 | C185: 57 | D185: 20 | E185: 35 | F185: 82 | G185: 53 | H185: 96 | I185: 37 | J185: 27 | K185: 37 | L185: 99 | M185: 89 | N185: 16 | O185: 38 | P185: 88 | Q185: 44 | R185: 38 | S185: 54 | T185: 22 | U185: 48 | V185: 12 | W185: 28 | X185: 34 | Y185: 52 | Z185: 68 | AA185: 55 | AB185: 10 | AC185: 26 | AD185: 32 | AE185: 60 | AF185: 22 | AG185: 72 | AH185: 40 | AI185: 22 | AJ185: 57 | AK185: 32 | AL185: =SUM(B185:AK185) -> 1618 | AM185: =AVERAGE(B185:AK185) -> 44.94444444 | AN185: =IF(AM185>=20,TRUE()) -> 1
A186: AAGCTTATCAGGCTGATGTTGAC_hsa-mir-21 | B186: 8 | C186: 62 | D186: 22 | E186: 34 | F186: 60 | G186: 47 | H186: 63 | I186: 25 | J186: 19 | K186: 44 | L186: 67 | M186: 86 | N186: 20 | O186: 21 | P186: 48 | Q186: 48 | R186: 37 | S186: 58 | T186: 18 | U186: 22 | V186: 15 | W186: 25 | X186: 34 | Y186: 22 | Z186: 45 | AA186: 29 | AB186: 21 | AC186: 20 | AD186: 22 | AE186: 51 | AF186: 15 | AG186: 52 | AH186: 45 | AI186: 18 | AJ186: 47 | AK186: 25 | AL186: =SUM(B186:AK186) -> 1295 | AM186: =AVERAGE(B186:AK186) -> 35.97222222 | AN186: =IF(AM186>=20,TRUE()) -> 1
A187: AAGCTTATCGGACTGATGTTGAC_hsa-mir-21 | B187: 12 | C187: 43 | D187: 31 | E187: 30 | F187: 77 | G187: 36 | H187: 83 | I187: 30 | J187: 32 | K187: 46 | L187: 98 | M187: 100 | N187: 15 | O187: 30 | P187: 74 | Q187: 56 | R187: 41 | S187: 40 | T187: 16 | U187: 39 | V187: 12 | W187: 29 | X187: 37 | Y187: 55 | Z187: 59 | AA187: 47 | AB187: 15 | AC187: 34 | AD187: 37 | AE187: 60 | AF187: 21 | AG187: 45 | AH187: 59 | AI187: 23 | AJ187: 49 | AK187: 24 | AL187: =SUM(B187:AK187) -> 1535 | AM187: =AVERAGE(B187:AK187) -> 42.63888889 | AN187: =IF(AM187>=20,TRUE()) -> 1
A188: AAGCTTGTCAGACTGATGTTGAC_hsa-mir-21 | B188: 6 | C188: 25 | D188: 9 | E188: 13 | F188: 21 | G188: 22 | H188: 26 | I188: 12 | J188: 11 | K188: 18 | L188: 27 | M188: 38 | N188: 8 | O188: 16 | P188: 28 | Q188: 13 | R188: 18 | S188: 17 | T188: 5 | U188: 16 | V188: 6 | W188: 13 | X188: 15 | Y188: 22 | Z188: 16 | AA188: 24 | AB188: 7 | AC188: 15 | AD188: 16 | AE188: 16 | AF188: 4 | AG188: 14 | AH188: 16 | AI188: 6 | AJ188: 12 | AK188: 11 | AL188: =SUM(B188:AK188) -> 562 | AM188: =AVERAGE(B188:AK188) -> 15.61111111 | AN188: =IF(AM188>=20,TRUE()) -> 0
A189: AAGGAGCTCACAGTCTATTG_ssc-miR-28-5p | B189: 61 | C189: 131 | D189: 78 | E189: 89 | F189: 115 | G189: 104 | H189: 132 | I189: 73 | J189: 83 | K189: 101 | L189: 172 | M189: 197 | N189: 35 | O189: 95 | P189: 189 | Q189: 72 | R189: 94 | S189: 157 | T189: 77 | U189: 103 | V189: 31 | W189: 61 | X189: 41 | Y189: 99 | Z189: 118 | AA189: 93 | AB189: 49 | AC189: 90 | AD189: 55 | AE189: 113 | AF189: 33 | AG189: 134 | AH189: 106 | AI189: 33 | AJ189: 127 | AK189: 56 | AL189: =SUM(B189:AK189) -> 3397 | AM189: =AVERAGE(B189:AK189) -> 94.36111111 | AN189: =IF(AM189>=20,TRUE()) -> 1
A190: AAGGAGCTCACAGTCTATTGA_ssc-miR-28-5p | B190: 30 | C190: 74 | D190: 23 | E190: 26 | F190: 40 | G190: 33 | H190: 42 | I190: 24 | J190: 24 | K190: 27 | L190: 63 | M190: 139 | N190: 10 | O190: 28 | P190: 41 | Q190: 26 | R190: 13 | S190: 42 | T190: 19 | U190: 52 | V190: 7 | W190: 38 | X190: 17 | Y190: 56 | Z190: 35 | AA190: 22 | AB190: 15 | AC190: 16 | AD190: 19 | AE190: 45 | AF190: 15 | AG190: 40 | AH190: 84 | AI190: 20 | AJ190: 30 | AK190: 29 | AL190: =SUM(B190:AK190) -> 1264 | AM190: =AVERAGE(B190:AK190) -> 35.11111111 | AN190: =IF(AM190>=20,TRUE()) -> 1
A191: AAGGAGCTCACAGTCTATTGAA_ssc-miR-28-5p | B191: 14 | C191: 32 | D191: 17 | E191: 14 | F191: 19 | G191: 27 | H191: 30 | I191: 42 | J191: 12 | K191: 6 | L191: 35 | M191: 69 | N191: 14 | O191: 16 | P191: 14 | Q191: 6 | R191: 14 | S191: 22 | T191: 12 | U191: 22 | V191: 5 | W191: 12 | X191: 12 | Y191: 33 | Z191: 27 | AA191: 11 | AB191: 4 | AC191: 21 | AD191: 9 | AE191: 31 | AF191: 9 | AG191: 29 | AH191: 57 | AI191: 23 | AJ191: 13 | AK191: 16 | AL191: =SUM(B191:AK191) -> 749 | AM191: =AVERAGE(B191:AK191) -> 20.80555556 | AN191: =IF(AM191>=20,TRUE()) -> 1
A192: AAGGAGCTCACAGTCTATTGAG_ssc-miR-28-5p | B192: 281 | C192: 375 | D192: 261 | E192: 152 | F192: 344 | G192: 342 | H192: 253 | I192: 277 | J192: 231 | K192: 261 | L192: 516 | M192: 779 | N192: 84 | O192: 219 | P192: 400 | Q192: 220 | R192: 147 | S192: 386 | T192: 206 | U192: 420 | V192: 100 | W192: 282 | X192: 106 | Y192: 311 | Z192: 319 | AA192: 226 | AB192: 120 | AC192: 244 | AD192: 162 | AE192: 285 | AF192: 121 | AG192: 387 | AH192: 437 | AI192: 139 | AJ192: 277 | AK192: 150 | AL192: =SUM(B192:AK192) -> 9820 | AM192: =AVERAGE(B192:AK192) -> 272.7777778 | AN192: =IF(AM192>=20,TRUE()) -> 1
A193: AAGGAGCTCACAGTCTATTGAGA_ssc-miR-28-5p | B193: 82 | C193: 140 | D193: 78 | E193: 28 | F193: 139 | G193: 85 | H193: 63 | I193: 106 | J193: 63 | K193: 51 | L193: 156 | M193: 309 | N193: 23 | O193: 54 | P193: 152 | Q193: 55 | R193: 29 | S193: 148 | T193: 45 | U193: 141 | V193: 27 | W193: 101 | X193: 39 | Y193: 94 | Z193: 81 | AA193: 48 | AB193: 35 | AC193: 67 | AD193: 44 | AE193: 100 | AF193: 37 | AG193: 119 | AH193: 124 | AI193: 41 | AJ193: 82 | AK193: 39 | AL193: =SUM(B193:AK193) -> 3025 | AM193: =AVERAGE(B193:AK193) -> 84.02777778 | AN193: =IF(AM193>=20,TRUE()) -> 1
A194: AAGGTGCATCTAGTGCAGATAG_ssc-miR-18a | B194: 35 | C194: 90 | D194: 62 | E194: 21 | F194: 88 | G194: 112 | H194: 30 | I194: 61 | J194: 36 | K194: 30 | L194: 98 | M194: 208 | N194: 12 | O194: 26 | P194: 65 | Q194: 55 | R194: 23 | S194: 65 | T194: 17 | U194: 104 | V194: 17 | W194: 71 | X194: 25 | Y194: 62 | Z194: 68 | AA194: 30 | AB194: 22 | AC194: 42 | AD194: 35 | AE194: 77 | AF194: 20 | AG194: 88 | AH194: 135 | AI194: 39 | AJ194: 29 | AK194: 32 | AL194: =SUM(B194:AK194) -> 2030 | AM194: =AVERAGE(B194:AK194) -> 56.38888889 | AN194: =IF(AM194>=20,TRUE()) -> 1
A195: AAGTCGTGATACTGTAAACGCTTTCTGATG_hsa-miR-3607-3p | B195: 16 | C195: 12 | D195: 4 | E195: 5 | F195: 21 | G195: 2 | H195: 10 | I195: 13 | J195: 17 | K195: 17 | L195: 23 | M195: 12 | N195: 7 | O195: 11 | P195: 33 | Q195: 18 | R195: 9 | S195: 16 | T195: 23 | U195: 11 | V195: 16 | W195: 9 | X195: 12 | Y195: 5 | Z195: 8 | AA195: 13 | AB195: 18 | AC195: 13 | AD195: 24 | AE195: 13 | AF195: 6 | AG195: 37 | AH195: 10 | AI195: 2 | AJ195: 26 | AK195: 2 | AL195: =SUM(B195:AK195) -> 494 | AM195: =AVERAGE(B195:AK195) -> 13.72222222 | AN195: =IF(AM195>=20,TRUE()) -> 0
A196: AAGTCGTGATACTGTAAACGCTTTCTGATGTA_hsa-miR-3607-3p | B196: 3 | C196: 6 | D196: 10 | E196: 7 | F196: 11 | G196: 6 | H196: 6 | I196: 20 | J196: 7 | K196: 27 | L196: 27 | M196: 11 | N196: 1 | O196: 9 | P196: 31 | Q196: 22 | R196: 16 | S196: 14 | T196: 27 | U196: 9 | V196: 12 | W196: 4 | X196: 9 | Y196: 2 | Z196: 13 | AA196: 10 | AB196: 10 | AC196: 28 | AD196: 10 | AE196: 12 | AF196: 3 | AG196: 29 | AH196: 4 | AI196: 5 | AJ196: 35 | AK196: 1 | AL196: =SUM(B196:AK196) -> 457 | AM196: =AVERAGE(B196:AK196) -> 12.69444444 | AN196: =IF(AM196>=20,TRUE()) -> 0
A197: AAGTGCCGCCATTTTTTG_ssc-mir-371 | B197: 0 | C197: 18 | D197: 13 | E197: 0 | F197: 27 | G197: 0 | H197: 0 | I197: 22 | J197: 0 | K197: 12 | L197: 0 | M197: 2 | N197: 0 | O197: 12 | P197: 0 | Q197: 2 | R197: 10 | S197: 21 | T197: 4 | U197: 0 | V197: 1 | W197: 23 | X197: 13 | Y197: 18 | Z197: 12 | AA197: 0 | AB197: 0 | AC197: 16 | AD197: 39 | AE197: 28 | AF197: 12 | AG197: 20 | AH197: 0 | AI197: 16 | AJ197: 0 | AK197: 7 | AL197: =SUM(B197:AK197) -> 348 | AM197: =AVERAGE(B197:AK197) -> 9.666666667 | AN197: =IF(AM197>=20,TRUE()) -> 0
A198: AAGTGCCGCCATTTTTTGAGT_ssc-mir-371 | B198: 0 | C198: 23 | D198: 15 | E198: 0 | F198: 31 | G198: 1 | H198: 0 | I198: 32 | J198: 0 | K198: 10 | L198: 0 | M198: 0 | N198: 0 | O198: 29 | P198: 1 | Q198: 0 | R198: 13 | S198: 11 | T198: 8 | U198: 0 | V198: 0 | W198: 11 | X198: 20 | Y198: 23 | Z198: 8 | AA198: 2 | AB198: 0 | AC198: 11 | AD198: 49 | AE198: 44 | AF198: 17 | AG198: 22 | AH198: 0 | AI198: 26 | AJ198: 1 | AK198: 14 | AL198: =SUM(B198:AK198) -> 422 | AM198: =AVERAGE(B198:AK198) -> 11.72222222 | AN198: =IF(AM198>=20,TRUE()) -> 0
A199: AAGTGCCGCCATTTTTTGAGTG_ssc-mir-371 | B199: 0 | C199: 86 | D199: 62 | E199: 0 | F199: 82 | G199: 0 | H199: 0 | I199: 42 | J199: 0 | K199: 39 | L199: 1 | M199: 0 | N199: 1 | O199: 54 | P199: 0 | Q199: 0 | R199: 26 | S199: 34 | T199: 5 | U199: 0 | V199: 0 | W199: 46 | X199: 45 | Y199: 46 | Z199: 32 | AA199: 3 | AB199: 0 | AC199: 24 | AD199: 89 | AE199: 56 | AF199: 21 | AG199: 59 | AH199: 0 | AI199: 47 | AJ199: 1 | AK199: 28 | AL199: =SUM(B199:AK199) -> 929 | AM199: =AVERAGE(B199:AK199) -> 25.80555556 | AN199: =IF(AM199>=20,TRUE()) -> 1
A200: AAGTGCCGCCATTTTTTGAGTGT_ssc-mir-371 | B200: 1 | C200: 235 | D200: 218 | E200: 2 | F200: 462 | G200: 2 | H200: 3 | I200: 389 | J200: 3 | K200: 132 | L200: 2 | M200: 2 | N200: 1 | O200: 289 | P200: 5 | Q200: 1 | R200: 136 | S200: 152 | T200: 46 | U200: 1 | V200: 4 | W200: 269 | X200: 296 | Y200: 335 | Z200: 157 | AA200: 2 | AB200: 2 | AC200: 174 | AD200: 506 | AE200: 394 | AF200: 184 | AG200: 308 | AH200: 4 | AI200: 313 | AJ200: 3 | AK200: 203 | AL200: =SUM(B200:AK200) -> 5236 | AM200: =AVERAGE(B200:AK200) -> 145.4444444 | AN200: =IF(AM200>=20,TRUE()) -> 1
... 2049 more rows
